Cogmind - Beta 16.1 @@@ ROGUE MODE // 2026.02.22 @ 17:21:42 Player: Savant Result: Escaped singularity! Performance ------------- Evolutions (9) 4500 Regions Visited (29) 5800 Robots Destroyed (512) 2560 Value Destroyed (32616) 32616 Prototype IDs (366) 7320 Alien Tech Used (11) 2200 Bonus (60066) 60066 TOTAL SCORE: 115062 Bonus ------- High Alert Combat Kills 7472 Follower Combat Kills 4924 Hunted by Unchained 500 Entered Garrisons 1200 Used RIF Installer 3500 Network Hubs Disabled 400 Built Enhanced Grunts 300 A7 Reached Mainframe 300 Met R17 at Cetus 500 Met R17 at Research 2000 Destroyed MAIN.C Guards 500 Met MAIN.C 5000 Destroyed MAIN.C Shell 5000 Destroyed MAIN.C 10000 Met Architect 300 Destroyed A8 300 Destroyed A6 400 Destroyed A5 500 Destroyed A2 1000 Destroyed Architect 15000 Win 3000 Friendly Fire -2030 Cogmind --------- Core Integrity 369/1600 Matter 214/300 Energy 868/887 System Corruption 0% +Membrane Temperature Cool (10) Movement Walking (91) Location Near Former Tau Ceti IV Parts ------- > --- POWER (4) -------- Chain-Quantum Reactor > --- PROPULSION (7) --- Improved Thunder Leg Thunder-Myomer Exoskeleton > --- UTILITY (10) ----- Armored Scrap Engine Huge Storage Unit Spectral Analyzer Experimental Targeting Computer Experimental Armor Integrity Analyzer Experimental Weapon Cycler Graphene Brace Experimental Force Field > --- WEAPON (4) ------- Cooled Nova Cannon Hpw. KE Linear Construct/C > --- INVENTORY (25) --- Improved Quantum Reactor Improved Thunder Leg Combat Linear Gravjet 2N-1CE's Frost Array High-capacity Storage Unit Advanced Energy Well (79) Advanced Energy Well (0) Experimental Energy Well (0) Experimental Matter Compressor (75) Long-range Terrain Scanner Advanced Terrain Scan Processor Advanced Particle Charger Experimental Weapon Cycler Centrium Medium Armor Plating Advanced Force Field AEGIS Remote Shield Integrity Redistributor Integrity Redistributor Compact HERF Cannon Hypervelocity Multirail Hellfire Missile Launcher Z-bomb Delivery System Peak State ------------ > --- POWER ------------ Chain-Quantum Reactor > --- PROPULSION ------- Thunder-Myomer Exoskeleton > --- UTILITY ---------- Armored Scrap Engine 2N-1CE's Frost Array Huge Storage Unit Spectral Analyzer Experimental Targeting Computer Experimental Core Analyzer Experimental Weapon Cycler Centrium Medium Armor Plating Experimental Force Field > --- WEAPON ----------- Compact Linear Accelerator Hpw. KE Linear Construct/C > --- INVENTORY -------- Improved Quantum Reactor Improved Thunder Leg Improved Thunder Leg Combat Linear Gravjet High-capacity Storage Unit Experimental Matter Compressor Centrium Light Armor Plating Advanced Force Field AEGIS Remote Shield Relay Coupler [Proto] Transdimensional Reconstructor Integrity Redistributor Integrity Redistributor Compact HERF Cannon Multirail Multirail Multirail Multirail Hypervelocity Multirail Omega Cannon Heavy Proton Missile Launcher Dual-blade Saw [Rating: 237] Favorites ----------- Power Constructs Engine Improved Ion Engine Power Core Light Nuclear Core Reactor Constructs Propulsion Constructs Treads Light Treads Leg Constructs Wheel Armored Wheel Utility Armored Scrap Engine Device Armored Scrap Engine Storage Huge Storage Unit Processor Experimental Targeting Computer Hackware Relay Coupler [Sentry] Protection Centrium Medium Armor Plating Weapon Constructs Energy Gun Cooled Phase Gun Energy Cannon Constructs Ballistic Gun Advanced KE Penetrator Ballistic Cannon Constructs Launcher Heavy Proton Missile Launcher Special Weapon Advanced Remote Datajack Impact Weapon Maul Slashing Weapon Ionic Axe Special Melee Weapon Advanced Datajack Build | -11 -10 -10 -9 -9 -9 -7 -7 -6 -6 -6 -6 -6 -5 -5 -5 -5 -4 -4 -4 -4 -3 -3 -3 -2 -2 -2 -1 -1 -1 ------- Run | Yrd Mat Min Mat Sto Rec Fac Gar Fac Ext Cet Arc Hub Fac Gar Fac Gar Fac Gar Fac Gar Res Qua Sec Res Tes Gar Acc Com Ac0 Slots Evolved 18 | . . . 2 . . 4 . 2 . . . . 2 . . . 2 . . . 2 . . 2 . . 2 . . Power 3 | . . . . . . . . 1 . . . . . . . . . . . . 1 . . . . . 1 . . Propulsion 5 | . . . 1 . . 1 . 1 . . . . 1 . . . . . . . . . . 1 . . . . . Utility 8 | . . . 1 . . 2 . . . . . . 1 . . . 1 . . . 1 . . 1 . . 1 . . Weapon 2 | . . . . . . 1 . . . . . . . . . . 1 . . . . . . . . . . . . Parts Attached 276 | 9 10 4 10 13 3 4 5 4 8 6 1 7 20 6 1 6 21 8 6 7 11 11 16 21 23 12 7 10 6 Power 23 | 1 . 1 1 1 1 . . 1 . . . 1 2 . . . 4 . . . . . 2 4 3 . 1 . . Engine 5 | 1 . . 1 1 1 . . 1 . . . . . . . . . . . . . . . . . . . . . Core 6 | . . 1 . . . . . . . . . . 1 . . . 3 . . . . . 1 . . . . . . Reactor 12 | . . . . . . . . . . . . 1 1 . . . 1 . . . . . 1 4 3 . 1 . . Propulsion 31 | 2 . 1 3 9 . . . . . . . . . . . . . . . . . . . 7 3 4 1 . 1 Treads 17 | 2 . 1 3 7 . . . . . . . . . . . . . . . . . . . 3 1 . . . . Leg 12 | . . . . . . . . . . . . . . . . . . . . . . . . 4 2 4 1 . 1 Wheel 2 | . . . . 2 . . . . . . . . . . . . . . . . . . . . . . . . . Hover . | . . . . . . . . . . . . . . . . . . . . . . . . . . . . . . Flight . | . . . . . . . . . . . . . . . . . . . . . . . . . . . . . . Utility 138 | 3 5 1 3 2 2 3 3 2 4 2 . 3 12 6 1 3 11 5 3 5 6 7 9 5 13 6 5 6 2 Device 59 | 2 1 . . . 2 1 1 . 1 1 . 1 8 3 . . 6 2 1 . 2 3 5 5 7 3 1 3 . Storage 10 | 1 3 . . 1 . . . . 1 . . . 1 . . 1 . . . . . 1 . . . . . 1 . Processor 10 | . . . 1 . . . . . . . . . 1 . . . 1 . . . 1 . 2 . 2 . 1 . 1 Hackware 46 | . . . . 1 . 2 2 2 2 . . 1 2 3 1 2 4 3 2 4 3 1 1 . 3 2 3 2 . Protection 13 | . 1 1 2 . . . . . . 1 . 1 . . . . . . . 1 . 2 1 . 1 1 . . 1 Artifact . | . . . . . . . . . . . . . . . . . . . . . . . . . . . . . . Weapon 84 | 3 5 1 3 1 . 1 2 1 4 4 1 3 6 . . 3 6 3 3 2 5 4 5 5 4 2 . 4 3 Energy Gun 14 | 2 . . . . . . . . 1 2 . . . . . . . . 1 1 5 . 1 1 . . . . . Energy Cannon 15 | . 2 . 1 1 . . 1 . . . . . 1 . . 1 . . . 1 . 2 2 . . 1 . 1 1 Ballistic Gun 14 | 1 . . 1 . . . . . 1 1 1 2 1 . . . 2 1 1 . . . . 1 1 . . . . Ballistic Cannon 8 | . 1 1 . . . . . . . . . . . . . . 1 . . . . . . 3 1 . . 1 . Launcher 7 | . 1 . . . . . . . 1 . . 1 . . . . 1 . . . . . 1 . . . . . 2 Special Weapon 17 | . . . . . . 1 . 1 . . . . 2 . . 2 2 2 1 . . 2 1 . 2 1 . . . Impact Weapon 3 | . 1 . 1 . . . . . . . . . 1 . . . . . . . . . . . . . . . . Slashing Weapon 5 | . . . . . . . 1 . 1 1 . . 1 . . . . . . . . . . . . . . 1 . Piercing Weapon . | . . . . . . . . . . . . . . . . . . . . . . . . . . . . . . Special Melee Weapon 1 | . . . . . . . . . . . . . . . . . . . . . . . . . . . . 1 . Unidentified Prototypes 22 | . 1 . . . 1 . . . . 3 . . 2 . . . . 1 . . 1 2 2 1 7 1 . . . Parts Lost 59 | . 1 . . 1 . . 4 1 . . . 11 4 . . . 13 1 . 1 1 2 13 1 1 . . . 4 Power 16 | . . . . 1 . . 1 1 . . . 4 1 . . . 3 . . . . . 4 . . . . . 1 Propulsion 5 | . . . . . . . . . . . . 1 . . . . . . . . . . 2 1 . . . . 1 Utility 17 | . . . . . . . . . . . . 2 1 . . . 3 1 . . 1 2 5 . 1 . . . 1 Weapon 21 | . 1 . . . . . 3 . . . . 4 2 . . . 7 . . 1 . . 2 . . . . . 1 Highest Loss Streak 11 | . 1 . . 1 . . 1 1 . . . 11 2 . . . 6 1 . 1 1 1 9 1 1 . . . 2 To Critical Strikes . | . . . . . . . . . . . . . . . . . . . . . . . . . . . . . . Average Backups 20 | 5 11 14 14 16 23 14 13 18 21 22 23 23 22 24 24 24 22 24 24 23 24 23 22 22 21 23 24 19 24 Power . | . 1 1 . 1 1 . . . . . 1 . . 1 1 . 1 1 1 . . . . . . . . . 1 Propulsion 1 | 3 4 5 3 3 5 3 . 1 . 1 1 1 1 . . . . . . . . . . . . . . 1 2 Utility 9 | . 1 2 3 4 6 7 9 11 11 10 10 11 11 12 13 14 13 13 15 14 14 15 12 10 10 13 16 7 13 Weapon 6 | 1 4 6 6 8 9 2 1 4 7 9 9 9 8 9 9 8 5 7 6 5 6 6 5 4 5 4 2 6 4 Tool/Special . | . . . . . . . . . . . . . . . . . . . . . . . . . . . . . . Unused Backups 149 | . 4 1 4 1 9 2 3 . 3 2 1 1 6 6 . 4 3 3 . 2 2 9 3 . 6 1 . 57 16 Power 8 | . . . 1 . 1 . . . . . . . . . . . . 2 . 1 . . . . 1 . . 1 1 Propulsion 24 | . 3 . 1 . 2 1 . . 1 . 1 . 5 . . . . . . . 1 1 . . 1 . . 5 2 Utility 46 | . . . 1 1 . 1 3 . . 1 . 1 . 4 . 3 2 1 . . 1 6 3 . 2 1 . 4 11 Weapon 67 | . 1 1 1 . 6 . . . 2 1 . . 1 2 . 1 1 . . 1 . 1 . . 1 . . 47 . Tool/Special 4 | . . . . . . . . . . . . . . . . . . . . . . 1 . . 1 . . . 2 Average Slot Usage (%) 61 | . 99 100 99 99 76 56 60 52 52 53 51 52 56 52 52 52 56 59 62 61 59 60 59 62 70 61 59 50 48 Engine 2 | . 14 3 8 10 10 7 6 4 3 . 4 5 . . . . . . . . . . . . . . . . . Reactor 3 | . . . . . . . . . . . . . 1 4 5 5 4 5 . 2 4 4 5 6 10 4 4 4 4 Treads 4 | . 28 28 32 26 5 4 6 . 1 . 4 6 1 . . 4 . . . . . 2 . 1 5 . . . . Leg 3 | . . . . . . 4 . 5 4 6 1 . . 5 5 . 4 4 5 5 4 1 3 10 2 7 7 3 4 Wheel 1 | . . . . 6 17 . . . . . . . . . . . . . . . . . . . . . . . . Device 11 | . 9 12 10 . 7 7 12 6 9 9 6 6 10 7 5 7 11 19 10 10 10 11 13 11 12 14 8 13 19 Storage 5 | . 14 14 11 11 11 7 7 6 6 6 6 6 5 5 5 5 5 5 5 5 4 4 4 4 4 4 4 4 4 Processor 6 | . . . . . . . . . . . . . 3 5 5 5 5 5 5 5 4 4 4 4 7 8 11 12 11 Hackware 4 | . . . . 10 3 12 9 11 9 6 6 5 1 8 11 4 6 . 9 8 9 7 7 8 6 5 10 1 . Protection 3 | . 4 1 11 11 4 . . . . 3 6 5 3 . . 3 . . . 1 2 2 1 . 1 1 1 3 1 Energy Gun 2 | . 17 . . . 3 . 1 . . 1 . . 2 . . . . . 1 3 14 9 4 3 . . . 1 . Energy Cannon 3 | . 4 13 10 9 6 7 8 . 3 6 6 5 . . . 4 3 1 3 4 . 3 2 1 4 4 2 1 . Ballistic Cannon 3 | . 4 14 8 9 . . . 5 2 . . . 1 5 5 . 2 4 5 1 . . 2 8 8 5 7 3 4 Special Weapon 1 | . . . . . . 3 . 3 3 1 . . . 4 5 4 3 1 3 4 1 2 2 . 2 2 . . . Peak Build Rating 237 | 9 12 15 22 25 38 51 61 78 95 105 107 110 133 120 116 118 142 142 136 141 149 168 199 178 208 216 223 237 236 Average Rating 145 | 5 9 13 19 22 31 46 53 70 88 100 105 104 112 115 113 115 126 136 133 133 142 156 171 155 192 201 210 218 227 On Entrance 104 | . 8 10 15 22 25 36 49 61 78 95 105 106 75 111 116 112 116 140 131 135 134 149 157 104 175 206 209 212 233 Avg Prop Armor Cover (%) 6 | . . . . 7 7 7 . . . . 13 . . . . . . . . . . . . 5 7 10 . 5 . Naked Turns . | . . . . . . . . . . . . . . . . . . . . . . . . . . . . . . Heaviest Build 254 | 15 36 36 47 104 104 38 49 108 123 128 136 136 143 131 129 138 141 133 119 135 158 180 192 176 178 174 173 209 254 Greatest Support 412 | 40 40 40 60 60 43 62 93 171 171 130 130 134 218 209 209 209 158 279 279 215 215 266 230 235 259 201 195 412 232 Greatest Overweight (x) 45 | . . . . 4 7 . . . 1 . 45 1 1 . . . 1 1 . . . . 1 1 1 1 . 2 1 Average Overweight (x) . | . . . . 1 3 . . . . . 5 . . . . . . . . . . . . . . . . . . Largest Inventory Capacity 25 | 8 15 15 15 25 25 15 15 25 25 25 25 25 25 25 25 25 25 25 25 25 25 25 25 25 25 25 25 25 25 Average Capacity 23 | 7 12 15 15 18 24 15 15 23 25 25 25 25 25 25 25 25 25 25 25 25 25 25 25 25 25 25 25 25 25 Most Carried 25 | 8 15 15 15 24 25 15 15 25 23 25 25 25 25 25 25 25 25 25 25 25 25 25 25 25 25 25 25 25 25 Average Carried 21 | 5 11 14 14 16 23 14 13 19 21 24 24 24 23 24 24 24 22 24 24 23 24 24 24 23 24 24 24 20 24 Final Capacity 25 | 8 15 15 15 25 15 15 15 25 25 25 25 25 25 25 25 25 25 25 25 25 25 25 25 25 25 25 25 25 25 Final Carried 25 | 8 15 15 15 24 15 13 15 25 22 25 25 20 24 25 24 25 24 24 25 25 25 25 25 25 25 25 25 25 22 Scrap Engine Consumption 848 | . . . . . 47 9 28 15 33 5 3 4 30 12 . 9 37 23 5 17 9 21 28 26 35 21 10 414 7 Constructs Created 17 | . . . . . 3 . 2 1 . . . 2 2 . . . 3 . . . . . . 2 . . . 2 . Constructs Modified 385 | . . . . . 16 5 8 9 10 . 4 1 15 1 . 5 13 8 2 5 8 10 17 8 17 11 7 200 5 Class Distribution -------------------- 33% | Generator-Construct 18% | Construct 14% | Bothacker-Construct 8% | Commander-Construct 8% | Mutant 5% | Botlord-Construct Dominant Class ---------------- Mutant | -10/Materials Mutant | -10/Mines Mutant | -9/Materials Scavenger-Mutant | -9/Storage Commander-Construct | -9/Recycling Commander-Construct | -7/Factory Construct | -7/Garrison Construct | -6/Factory Commander-Construct | -6/Extension Commander-Construct | -6/Cetus Commander-Construct | -6/Archives Commander-Construct | -6/Hub_04(d) Construct | -5/Factory Construct | -5/Garrison Bothacker-Construct | -5/Factory Bothacker-Construct | -5/Garrison Bothacker-Construct | -4/Factory Bothacker-Construct | -4/Garrison Bothacker-Construct | -4/Factory Bothacker-Construct | -4/Garrison Botlord-Construct | -3/Research Bothacker-Construct | -3/Quarantine Construct | -3/Section 7 Scavenger-Gunner | -2/Research Gunner | -2/Testing Construct | -2/Garrison Botlord-Construct | -1/Access Generator-Construct | -1/Command Generator-Construct | -1/Access_0 Resources | -11 -10 -10 -9 -9 -9 -7 -7 -6 -6 -6 -6 -6 -5 -5 -5 -5 -4 -4 -4 -4 -3 -3 -3 -2 -2 -2 -1 -1 -1 ----------- Run | Yrd Mat Min Mat Sto Rec Fac Gar Fac Ext Cet Arc Hub Fac Gar Fac Gar Fac Gar Fac Gar Res Qua Sec Res Tes Gar Acc Com Ac0 Matter Collected 18885 | 282 381 216 383 552 63 40 280 165 629 225 30 263 1160 708 39 635 1181 1162 121 956 287 752 1986 1196 1709 670 815 1287 712 Remotely . | . . . . . . . . . . . . . . . . . . . . . . . . . . . . . . Salvage Created 30227 | 99 484 263 600 785 693 187 1500 658 876 58 36 252 1816 402 . 364 1515 1797 70 666 474 1985 3719 1063 2416 1924 1754 1750 2021 Parts 1356 | 9 34 14 43 60 24 7 79 30 32 1 3 15 79 15 . 21 69 74 4 32 8 85 136 50 118 87 80 55 92 Haulers Intercepted 7 | . 1 . 3 2 . . . . . . . . 1 . . . . . . . . . . . . . . . . Recyclers Shooed 12 | . . . . . 2 . . 2 . . . . 2 . . . 4 . . . . 1 1 . . . . . . Parts Field Recycled . | . . . . . . . . . . . . . . . . . . . . . . . . . . . . . . Retrieved Matter . | . . . . . . . . . . . . . . . . . . . . . . . . . . . . . . Parts Self-Destructed . | . . . . . . . . . . . . . . . . . . . . . . . . . . . . . . Prevented . | . . . . . . . . . . . . . . . . . . . . . . . . . . . . . . Parts Restored 1 | . . . . . . . . . . . . . . . . . 1 . . . . . . . . . . . . Broken 1 | . . . . . . . . . . . . . . . . . 1 . . . . . . . . . . . . Kills | -11 -10 -10 -9 -9 -9 -7 -7 -6 -6 -6 -6 -6 -5 -5 -5 -5 -4 -4 -4 -4 -3 -3 -3 -2 -2 -2 -1 -1 -1 ------- Run | Yrd Mat Min Mat Sto Rec Fac Gar Fac Ext Cet Arc Hub Fac Gar Fac Gar Fac Gar Fac Gar Res Qua Sec Res Tes Gar Acc Com Ac0 Combat Hostiles Destroyed 442 | . 12 4 14 25 2 4 24 4 15 . . 6 30 7 . 6 21 18 1 11 7 24 60 23 33 32 21 15 23 Melee 4 | . . . . . . . 2 . . . . . 1 . . . . . . 1 . . . . . . . . . Guns 113 | . 5 . . 4 . . 2 . . . . . 14 . . 1 9 8 1 6 5 16 16 6 9 4 7 . . Cannons 228 | . 2 4 6 14 . 4 11 4 13 . . 3 9 7 . 4 6 8 . 4 2 5 32 12 19 14 13 15 17 AOE 66 | . 4 . 8 7 . . 9 . 2 . . 3 6 . . . 1 . . . . . 7 4 4 8 . . 3 Classes Destroyed 25 | 2 6 1 1 . . 2 1 . 1 . . . 2 . . . 1 1 . 1 . 1 3 1 . 1 . . . Worker 8 | . 1 . . . . . . 1 . . . . . . . . 2 . . . . 1 2 . 1 . . . . Builder 13 | . 1 . . . 2 . . 2 . . . . . . . . . . 1 . . 1 . 1 2 . 3 . . Tunneler 2 | 2 . . . . . . . . . . . . . . . . . . . . . . . . . . . . . Hauler 7 | . 1 . 3 2 . . . . . . . . 1 . . . . . . . . . . . . . . . . Recycler 19 | 1 . 1 1 . 7 . . 3 . . . . 2 . . . . . . . . 2 1 . 1 . . . . Operator 4 | . . . 1 1 . . . 1 . . 1 . . . . . . . . . . . . . . . . . . Drone 2 | . . . . . . . . . . . . . . . . . . . . . . . . 2 . . . . . Watcher 10 | . 2 . 3 2 . . 1 . 1 . . . . . . . 1 . . . . . . . . . . . . Swarmer 83 | . 3 . 8 11 . . 7 . 2 . . . 8 . . 1 . . . 1 . 7 6 11 4 12 2 . . Cutter 6 | . . . . . . . . . . . . . . . . . . . . 4 . . . . . 2 . . . Saboteur 2 | . . . . . . . . . . . . . . . . . . . . . . . 2 . . . . . . Grunt 139 | . 9 2 4 4 . 2 14 3 5 . . 2 8 4 . 2 6 7 . 2 5 6 17 4 14 5 11 3 . Brawler 6 | . . . . . . . . . . . . . 1 . . . . . . . . . 1 2 . 1 . 1 . Duelist 1 | . . . . . . . . . . . . . . . . . . 1 . . . . . . . . . . . Protector 1 | . . . . . . . . . . . . . 1 . . . . . . . . . . . . . . . . Sentry 49 | . . 2 2 10 2 . 2 . 6 . . 1 1 . . . 4 7 . . . . 4 . 3 2 3 . . Demolisher 1 | . . . . . . 1 . . . . . . . . . . . . . . . . . . . . . . . Specialist 9 | . . . . . . . . . . . . . . . . . 4 . . . . . 3 . . . 2 . . Hunter 29 | . . . . . . . 1 . 1 . . . 6 . . 1 1 . . 1 2 . 2 . 1 6 2 5 . Programmer 81 | . . . . . . 1 . 1 . . . 3 5 3 . 3 6 2 1 4 . 10 19 6 11 2 2 2 . Heavy 1 | . . . . . . . . . . . . . . . . . . . . . . . 1 . . . . . . Behemoth 4 | . . . . . . . . . . . . . . . . . . 1 . 1 . . 1 . . 1 . . . S7 Guard 2 | . . . . . . . . . . . . . . . . . . . . . . . 2 . . . . . . M Guard 2 | . . . . . . . . . . . . . . . . . . . . . . . . . . . . 2 . Enhanced Grunt 14 | . . . . . . . . . . . . . . . . . . . . . . . . . . . . . 14 Enhanced Hunter 4 | . . . . . . . . . . . . . . . . . . . . . . . . . . . . . 4 Combat Programmer 2 | . . . . . . . . . . . . . . . . . . . . . . . . . . . . 2 . Striker 1 | . . . . . . . . . . . . . . . . . . . . . . . . . . 1 . . . Executioner 2 | . . . . . . . . . . . . . . . . . . . . . . . 2 . . . . . . Fortress 1 | . . . . . . . . . . . . . . . . . . . . . . 1 . . . . . . . Butcher 1 | . . . . . . . . . 1 . . . . . . . . . . . . . . . . . . . . Best Kill Streak 12 | 2 7 2 6 7 2 3 12 4 3 . 1 4 6 3 . 2 4 4 1 4 7 4 7 6 10 5 6 7 6 Combat Bots Only 12 | . 5 2 4 6 1 3 12 1 3 . . 4 6 3 . 2 4 4 1 4 7 3 7 5 8 5 4 7 6 Max Kills in Single Turn 3 | 1 3 1 3 3 1 2 2 2 2 1 1 1 3 1 . 1 1 1 1 1 1 2 3 3 3 3 2 2 1 Gunslinging . | . . . . . . . . . . . . . . . . . . . . . . . . . . . . . . Exploded 3 | . 2 . 3 3 . . 2 . 2 . . 1 3 . . . 1 . . . . . 3 2 2 2 . . 1 Melee 1 | . . . . . . . 1 . . . . . 1 . . . . . . 1 . . . . . . . . . Uniques/NPCs Destroyed 8 | . . . . . . . . . . 1 . . . . . . . . . . . . . . . . . 2 5 A7 (-6/Cetus) MAIN.C Shell (-1/Command) MAIN.C (-1/Command) A8 (-1/Access_0) A6 (-1/Access_0) A5 (-1/Access_0) A2 (-1/Access_0) Architect (-1/Access_0) Combat | -11 -10 -10 -9 -9 -9 -7 -7 -6 -6 -6 -6 -6 -5 -5 -5 -5 -4 -4 -4 -4 -3 -3 -3 -2 -2 -2 -1 -1 -1 -------- Run | Yrd Mat Min Mat Sto Rec Fac Gar Fac Ext Cet Arc Hub Fac Gar Fac Gar Fac Gar Fac Gar Res Qua Sec Res Tes Gar Acc Com Ac0 Hostile Shots Fired 4839 | . 35 10 20 88 14 8 173 24 167 1 . 314 248 47 . 21 546 129 15 99 66 146 1307 150 115 186 116 130 664 Missed 1680 | . 7 5 7 27 3 1 64 7 63 1 . 111 56 10 . 8 169 43 7 24 20 34 545 48 35 63 43 34 245 Deflected 2 | . . . . . . . . . . . . . . . . . . . . . . . . . . . . 2 . Hits 3159 | . 28 5 13 61 11 7 109 17 104 . . 203 192 37 . 13 377 86 8 75 46 112 762 102 80 123 73 96 419 Melee 42 | . . . . . . . . . . . . 1 1 . . . . . . 10 . . 18 2 . 8 . . 2 Projectile 3117 | . 28 5 13 61 11 7 109 17 104 . . 202 191 37 . 13 377 86 8 65 46 112 744 100 80 115 73 96 417 AOE 19 | . . . . . . 8 . . . . . . . . . . 6 . . 1 . . . . . . . 4 . Critical Strikes 120 | . 2 1 1 2 . . 3 1 1 . . 10 8 1 . . 13 1 . 4 2 5 26 4 2 7 2 4 20 Actively Blocked 40 | . . . . . . . . . . . . . . . . . 7 . . 2 . . 5 2 . 4 . . 20 Part Disruptions 4 | . . . . . . . . . . . . . . . . . 1 . . . . . . 1 . 1 . 1 . Damage Taken 50379 | . 347 65 224 814 178 407 1548 398 1372 32 . 3820 3452 734 . 308 7078 1272 124 1434 573 2462 10288 2020 974 1627 898 1529 6401 Core 4803 | . 69 . . 73 15 . 261 56 143 . . 218 376 80 . 57 855 108 19 136 30 207 750 91 91 77 43 91 957 Absorbed by Shields 16534 | . . . . . . . . . 107 30 . . 34 . . . 109 568 . 282 282 . 4325 340 671 1400 765 1371 6250 Ignored by Resistances 1892 | . . . . . . . . . . . . . . . . . . . . . . . 747 146 146 34 139 583 97 Regen/Repaired (Parts) 20041 | . . . . 474 45 . 727 321 1059 . 168 141 1834 100 . 1026 2683 1231 426 365 1149 1556 3185 781 601 379 585 341 864 Core Remaining (%) 52 | 100 . 72 . . 78 . 62 . . . . 50 . . . 48 . . . 2 . . 19 . . 75 . . 23 Volleys Fired 1787 | 17 46 10 29 51 32 9 71 31 114 1 . 26 93 48 5 44 115 60 7 57 21 81 251 60 107 58 76 77 190 Largest 4 | 1 2 2 2 2 2 1 2 1 2 1 . 3 3 1 1 2 4 4 4 4 4 4 4 4 4 4 3 2 2 Hottest 318 | 20 108 105 105 105 91 146 214 181 139 50 . 94 229 74 74 109 184 233 180 180 236 267 318 205 225 288 240 264 264 Shots Fired 3054 | 17 87 20 52 96 33 9 91 31 136 1 . 28 175 46 5 46 180 157 16 114 59 234 514 131 193 112 122 123 226 Gun 1088 | 17 71 . 9 30 19 . 12 . 22 . . 2 123 . . 2 84 75 9 64 49 191 213 47 20 8 10 . 11 Cannon 1650 | . 10 20 38 62 14 9 61 19 49 1 . 20 45 31 1 27 65 66 3 25 7 41 283 78 161 88 103 113 210 Launcher 70 | . 6 . 5 4 . . 12 . 1 . . 3 4 . . . 3 . . . . . 7 6 4 7 3 . 5 Special 246 | . . . . . . . 6 12 64 . . 3 3 15 4 17 28 16 4 25 3 2 11 . 8 9 6 10 . Kinetic 1167 | 17 6 10 23 72 1 9 . 13 44 . . 2 72 31 1 5 110 104 9 58 9 . 127 77 91 54 98 94 30 Thermal 1247 | . 4 10 24 20 29 . 52 1 6 1 . 20 88 . . 19 16 8 3 29 47 222 338 36 62 15 . 6 191 Explosive 54 | . 6 . 5 4 . . 12 . 1 . . 3 4 . . . . . . . . . 7 3 . 4 . . 5 Electromagnetic 340 | . 71 . . . 3 . 21 5 21 . . . 8 . . 5 26 29 . 2 . 10 31 15 32 30 18 13 . Robot Hit Streak 46 | 3 12 6 8 9 5 4 6 16 25 . . 14 38 16 20 26 19 28 8 14 16 46 31 12 18 30 10 15 11 Robot Miss Streak 7 | 2 3 4 3 2 2 3 3 5 2 . . 2 3 2 . 1 4 2 1 3 2 4 4 4 2 4 3 2 7 Penetration Max 2 | . . . . . . . . . 1 . . . 1 . . . 1 . . . 1 . 1 . 2 1 2 1 1 Secondary Targets 3 | . . . . . . . . . . . . . 2 . . . . . . . . . 1 . . . . . . Max Gunslinging Chain 1 | . . . . . . . . . . . . . 1 . . . . . . . . . 1 . . . . . . Shots Hit Robots 2057 | 9 54 10 30 66 29 8 105 30 106 7 2 16 122 29 4 30 128 122 11 78 46 151 320 59 96 71 50 116 152 Core Hits 880 | 7 21 6 24 33 9 4 56 11 23 3 1 10 54 10 . 7 39 44 2 19 14 55 121 44 64 51 43 49 56 Critical Kills 41 | . . . . . . . . . . . . . 4 . . . 3 2 . 1 1 3 2 . 9 5 9 . 2 Critical Parts Destroyed 50 | . . . . . 2 . . . . . . . 1 . . 1 6 1 . . 3 . 2 . 10 5 11 . 8 Critical Strikes 155 | . 1 1 . 1 3 . 3 1 1 1 . . 8 . . 2 12 12 . 1 5 9 15 2 24 11 22 9 11 Burn 19 | . . . . . . . . . . . . . 2 . . . . . . . . 6 11 . . . . . . Meltdown 7 | . . . . . . . . . . . . . . . . . . . . . . 3 1 . . 1 . . 2 Destroy 84 | . . . . . . . . . . . . . 5 . . 1 9 3 . 1 5 . 3 . 19 9 20 . 9 Blast 16 | . . 1 . 1 . . . . . . . . . . . . 1 6 . . . . . 2 3 . 1 1 . Corrupt 12 | . 1 . . . . . . . 1 . . . 1 . . 1 2 2 . . . . . . 2 1 1 . . Smash 3 | . . . . . 3 . . . . . . . . . . . . . . . . . . . . . . . . Sever 14 | . . . . . . . 3 1 . 1 . . . . . . . 1 . . . . . . . . . 8 . Melee Attacks 271 | . 4 . 5 1 15 . 66 9 13 27 10 23 11 2 . 3 2 21 . 4 2 6 18 . . . . 29 . Impact 30 | . 4 . 5 1 15 . . . . . . . 5 . . . . . . . . . . . . . . . . Slashing 239 | . . . . . . . 66 9 13 27 10 23 6 2 . 3 2 21 . 4 2 6 18 . . . . 27 . Piercing . | . . . . . . . . . . . . . . . . . . . . . . . . . . . . . . Sneak Attacks 49 | . . . . . 3 . 1 3 . 7 2 . 1 . . 2 . . . 2 . 1 . . . . . 27 . Combat Hostiles . | . . . . . . . . . . . . . . . . . . . . . . . . . . . . . . Follow-up Attacks . | . . . . . . . . . . . . . . . . . . . . . . . . . . . . . . Damage Inflicted 104083 | 70 1206 206 1038 1840 806 230 5231 1427 2821 492 181 1334 4910 804 . 831 4193 4574 263 1942 1640 4824 14114 3707 3762 4427 2585 8526 26099 Guns 19891 | 70 671 . 56 369 223 . 120 . 271 . . 52 2461 . . 54 1750 1270 189 1111 1169 3828 4851 632 308 99 226 . 111 Cannons 65242 | . 150 206 541 1000 206 230 1091 866 2369 . . 869 1689 804 . 565 1938 1644 47 646 266 878 7576 1877 2946 2615 2211 7247 24765 Explosions 10808 | . 385 . 430 444 . . 952 263 151 . . 413 654 . . . 505 . . . 161 . 1673 1197 508 1713 136 . 1223 Melee 7951 | . . . . . 377 . 3068 298 . 492 181 . 106 . . 212 . 1660 . 185 . 118 . . . . . 1254 . Ramming 191 | . . . 11 27 . . . . 30 . . . . . . . . . 27 . 44 . 14 1 . . 12 25 . Kinetic 34402 | 70 89 62 229 1164 17 230 . 768 2293 . . 52 1606 804 . 54 2560 2022 160 1115 345 . 4824 1644 1853 1632 1919 6966 1924 Thermal 43917 | . 113 144 368 205 372 . 871 48 76 . . 869 2325 . . 369 374 116 76 606 1090 4444 6879 490 693 437 . . 22952 Explosive 8807 | . 333 . 430 444 . . 952 263 151 . . 413 654 . . . . . . . 161 . 1673 862 . 1248 . . 1223 Electromagnetic 8815 | . 671 . . . 40 . 340 50 271 . . . 219 . . 196 1259 776 . 36 . 262 724 710 1216 1110 654 281 . Impact 377 | . . . . . 377 . . . . . . . . . . . . . . . . . . . . . . . . Slashing 7574 | . . . . . . . 3068 298 . 492 181 . 106 . . 212 . 1660 . 185 . 118 . . . . . 1254 . Piercing . | . . . . . . . . . . . . . . . . . . . . . . . . . . . . . . Highest Corruption 30 | . . . . . . . 1 1 4 4 . 30 5 7 7 7 14 15 16 21 . 10 25 . . . . . . Average Corruption 12 | . . . . . . . 1 1 3 3 . 18 4 5 7 7 8 14 15 20 . 6 20 . . . . . . Corruption Purged 4 | . . . . . . . . . . 4 . . . . . . . . . . . . . . . . . . . Corruption Blocked . | . . . . . . . . . . . . . . . . . . . . . . . . . . . . . . Effects 575 | . . . . . . . . 1 37 5 . 5 20 28 9 32 37 53 16 60 . 34 238 . . . . . . Message Errors 130 | . . . . . . . . 1 10 1 . 1 4 5 2 8 9 11 6 13 . 9 50 . . . . . . Matter Fused 149 | . . . . . . . . . 5 3 . 1 4 8 2 8 11 16 3 16 . 13 59 . . . . . . Heat Flow Errors 62 | . . . . . . . . . 7 1 . 1 5 . 1 5 . 6 2 5 . 2 27 . . . . . . Energy Discharges 61 | . . . . . . . . . 4 . . . 2 3 3 4 1 4 2 10 . 4 24 . . . . . . Parts Rejected 3 | . . . . . . . . . . . . . . . . . 1 . . . . . 2 . . . . . . Parts Fused 4 | . . . . . . . . . . . . . . 1 . 1 . . . . . . 2 . . . . . . Data Loss (minor) 67 | . . . . . . . . . 7 . . 1 2 5 . 3 5 8 2 5 . 5 24 . . . . . . Data Loss (major) 27 | . . . . . . . . . 4 . . . . 3 . 1 1 2 . 4 . . 12 . . . . . . Misfires 13 | . . . . . . . . . . . . . . . . . 3 3 . . . 1 6 . . . . . . Alerts 15 | . . . . . . . . . . . . . 2 1 1 2 2 . 1 . . . 6 . . . . . . Misdirections 8 | . . . . . . . . . . . . 1 . . . . . . . . . . 7 . . . . . . Weapon Failures 36 | . . . . . . . . . . . . . 1 2 . . 4 3 . 7 . . 19 . . . . . . Overload Shots . | . . . . . . . . . . . . . . . . . . . . . . . . . . . . . . Overflow Damage 5904 | . 37 . 12 42 179 28 65 97 146 . 40 201 97 43 . 93 86 81 25 19 21 88 582 231 80 122 83 218 3188 Projectiles 5066 | . . . . 4 2 28 . 97 146 . . 192 57 43 . 55 86 24 20 2 21 88 580 96 66 45 83 218 3113 Explosions 443 | . 37 . 12 38 . . 4 . . . . 9 40 . . . . . . . . . 2 135 14 77 . . 75 Melee 395 | . . . . . 177 . 61 . . . 40 . . . . 38 . 57 5 17 . . . . . . . . . Knockbacks 120 | . 1 1 . 2 1 2 . 4 7 . . . 4 7 . . 10 1 . 2 1 . 20 11 10 3 6 17 10 Impact 3 | . . . . . 1 . . . 1 . . . . . . . . . . . 1 . . . . . . . . Kinetic 110 | . 1 1 . 2 . 2 . 4 5 . . . 4 5 . . 10 1 . 2 . . 18 11 10 3 6 16 9 Secondary 7 | . . . . . . . . . 1 . . . . 2 . . . . . . . . 2 . . . . 1 1 Self-Inflicted Damage 568 | . 40 . 35 39 . . 72 . . . . 18 51 . . . . . . . . . . 105 . 190 18 . . Shots 19 | . 1 . 2 1 . . 4 . . . . 1 1 . . . . . . . . . . 2 . 6 1 . . Rammed 2 | . . . 1 1 . . . . . . . . . . . . . . . . . . . . . . . . . Targets Rammed 13 | . . . 1 1 . . . . 3 . . . . . . . . . 1 . 3 . 1 1 . . 1 1 . Kicked 11 | . . . . . . . . . 3 . . . . . . . . . 1 . 3 . 1 1 . . 1 1 . Crushed . | . . . . . . . . . . . . . . . . . . . . . . . . . . . . . . Highest Temperature 409 | . 322 204 231 295 96 338 324 152 322 82 . 90 409 144 102 214 348 252 260 366 247 169 357 . 34 152 . 237 300 Average Temperature 92 | . 100 64 65 76 34 151 95 52 108 29 . 17 131 51 50 69 86 93 117 132 125 44 100 . 16 86 . 46 67 Received Heat Transfer 6757 | . 192 48 63 279 60 6 672 114 298 7 . 576 291 171 . 36 1437 242 . 405 70 186 1000 128 83 90 84 72 147 Effects 13 | . 1 . 1 1 . . . . 1 . . . 4 . . . 3 . . 1 . . 1 . . . . . . Shutdowns 1 | . . . . . . . . . . . . . 1 . . . . . . . . . . . . . . . . Energy Bleed 3 | . 1 . 1 . . . . . . . . . . . . . . . . 1 . . . . . . . . . Interference 6 | . . . . 1 . . . . 1 . . . . . . . 3 . . . . . 1 . . . . . . Damage (major) 3 | . . . . . . . . . . . . . 3 . . . . . . . . . . . . . . . . Siege Activations . | . . . . . . . . . . . . . . . . . . . . . . . . . . . . . . Martial Activations . | . . . . . . . . . . . . . . . . . . . . . . . . . . . . . . Shielding Activations 1 | . . . . . . . . . . . . . . . . . . . . . . . . . . . . 1 . Total Turns 46 | . . . . . . . . . . . . . . . . . . . . . . . . . . . . 46 . Longest Duration 46 | . . . . . . . . . . . . . . . . . . . . . . . . . . . . 46 . Robots Disrupted 1 | . . . . . . . . . . . . . . . . . . . . . . . . . . . . 1 . Combat Hostiles 1 | . . . . . . . . . . . . . . . . . . . . . . . . . . . . 1 . Robots Corrupted 24 | . 1 . . . 3 . . . . . . . . . . 1 5 2 1 . . . 2 1 1 5 1 . 1 Combat Hostiles 22 | . 1 . . . 2 . . . . . . . . . . 1 5 2 . . . . 2 1 1 5 1 . 1 Parts Fried 51 | . 2 . . . . . 1 . 2 . . . 3 . . 3 6 4 4 . . 1 1 3 8 9 3 . 1 Impact Corruptions 9 | . . . . . 6 . . . . . . . . 1 . . . . 1 . . . . . . . . . 1 Robots Melted 9 | . . . . . . . . . . . . . . . . . . . . . . 3 3 . . 1 . . 2 Combat Hostiles 9 | . . . . . . . . . . . . . . . . . . . . . . 3 3 . . 1 . . 2 Parts Melted 60 | . . . 2 1 . 1 . . . . . . 3 . . . . . . 1 2 16 23 . . 1 . . 10 Heat Transferred 29079 | . 161 259 666 370 645 . 1628 . . . . . 2293 . . 350 200 148 74 740 1341 5733 9959 900 692 370 . . 2550 Parts Sabotaged 3 | . . . . . . . . . . . . 2 . . . . . . . . . . 1 . . . . . . Parts Stolen . | . . . . . . . . . . . . . . . . . . . . . . . . . . . . . . Parts Stripped . | . . . . . . . . . . . . . . . . . . . . . . . . . . . . . . Power Chain Reactions 4 | . 1 . . . . . . . . . . . . . . . 1 . . . . . . . 2 . . . . Alert | -11 -10 -10 -9 -9 -9 -7 -7 -6 -6 -6 -6 -6 -5 -5 -5 -5 -4 -4 -4 -4 -3 -3 -3 -2 -2 -2 -1 -1 -1 ------- Run | Yrd Mat Min Mat Sto Rec Fac Gar Fac Ext Cet Arc Hub Fac Gar Fac Gar Fac Gar Fac Gar Res Qua Sec Res Tes Gar Acc Com Ac0 Maximum Alert Level 5 | . . . 1 1 . 1 4 3 2 2 1 4 2 2 1 3 2 3 2 3 2 1 5 4 3 5 5 3 . Low Security (%) 24 | 100 100 100 98 34 100 34 25 . 8 . 64 24 . . 51 18 54 15 . . . 92 26 . 4 . . . . Level 1 12 | . . . 1 65 . 65 4 . 61 31 35 5 41 . 48 9 34 22 27 24 43 7 7 . 16 . . . . Level 2 14 | . . . . . . . 35 39 29 68 . 18 58 100 . 19 10 57 72 38 56 . 16 . 68 6 . . . Level 3 41 | . . . . . . . 29 60 . . . 42 . . . 52 . 4 . 37 . . 19 59 10 9 . 100 . Level 4 6 | . . . . . . . 4 . . . . 8 . . . . . . . . . . 28 40 . 68 79 . . Level 5 . | . . . . . . . . . . . . . . . . . . . . . . . . . . 16 20 . . High Security . | . . . . . . . . . . . . . . . . . . . . . . . . . . . . . . Max Security . | . . . . . . . . . . . . . . . . . . . . . . . . . . . . . . Peak Influence 1869 | 5 193 61 209 315 153 350 1121 847 568 498 283 1306 623 648 340 1098 576 895 471 979 651 228 1617 1382 771 1869 1629 1032 . Initial 1120 | . . 61 . 16 103 350 87 588 387 308 159 14 354 419 340 151 576 121 469 264 531 159 87 870 769 561 1120 1032 . Average 471 | 1 73 9 77 202 24 233 527 713 335 416 159 594 422 537 213 646 206 442 425 631 450 139 699 1107 542 1376 1418 866 . Influence Increases 23219 | 15 468 114 459 859 379 519 1124 862 1078 380 211 2197 981 289 157 1257 861 924 129 831 300 772 2377 923 1212 1328 1047 609 557 Destroy 0b10 Robot/C 10900 | . 240 80 280 500 60 80 560 340 580 160 80 840 580 140 20 440 480 460 40 460 160 480 1200 460 660 700 500 320 . Destroy 0b10 Robot/NC 505 | 15 25 5 40 25 50 . 35 55 35 10 5 35 20 . 10 . 15 25 5 . 10 20 15 5 20 5 15 5 . Destroy Leader 1764 | . 66 10 62 148 . 30 30 44 56 . . 204 102 . . 60 122 30 10 50 30 70 230 90 110 70 90 50 . Allied During Kill 2178 | . . . . . 40 13 31 113 196 170 85 768 . 9 20 305 14 29 3 102 11 1 36 . 3 78 93 58 . Successful Hack 797 | . 19 . 27 25 4 31 14 12 49 . . 77 23 22 16 38 47 28 48 14 20 66 50 32 92 . 43 . . Select Force Hacks 270 | . 60 . . . 210 . . . . . . . . . . . . . . . . . . . . . . . . Disable Machine 1155 | . 15 . 15 30 15 . . 180 45 15 30 30 15 . 45 45 . . . . 15 45 240 60 165 15 30 30 75 Anti-Garrison Action 1450 | . . . . . . . 300 . . . . 150 . 50 . 300 . 300 . 150 . . . . . 200 . . . Destroy Structure 2740 | . 43 4 35 41 . . 49 88 57 25 11 78 166 53 46 54 78 37 8 25 54 60 396 231 162 170 156 131 482 Advance Influence 350 | . . . . . . 350 . . . . . . . . . . . . . . . . . . . . . . . Partial Spotted 75 | . . . . . . 15 . . . . . 15 . . . . 30 . . . . . . . . . 15 . . Lose Combat Pursuer 1035 | . . 15 . 90 . . 105 30 60 . . . 75 15 . 15 75 15 15 30 . 30 210 45 . 90 105 15 . Influence Decreases 22702 | 15 309 273 418 635 644 394 128 1193 1316 534 569 1514 1105 240 588 376 1786 202 646 264 962 900 985 1101 1833 207 1303 1226 1036 Entered New Map 8201 | . . 98 . 25 162 . 38 533 403 244 239 26 369 180 308 66 522 52 426 114 414 124 68 677 600 187 749 581 996 Time Decay 9125 | 15 299 175 418 600 482 254 . 440 598 230 270 458 546 . 130 . 584 . 180 . 318 586 741 374 583 . 494 350 . Lost Part 580 | . 10 . . 10 . . 40 10 . . . 110 40 . . . 120 10 . 10 10 20 130 10 10 . . . 40 Lost Ally 1996 | . . . . . . 140 50 60 40 60 60 470 . 60 . 160 260 140 40 140 70 20 46 40 40 20 60 20 . Purge Threat 2800 | . . . . . . . . 150 275 . . 450 150 . 150 150 300 . . . 150 150 . . 600 . . 275 . Squads Dispatched 117 | . 4 1 1 1 . 3 . 4 2 . . 17 9 . . . 9 . 1 . 5 6 22 10 13 . 6 3 . Investigation 8 | . 3 1 . . . . . . . . . 2 . . . . . . . . . . . . 1 . 1 . . Extermination 36 | . . . . . . 1 . 2 . . . 3 2 . . . 3 . 1 . . 5 9 2 5 . 2 1 . Reinforcement 44 | . 1 . 1 1 . 1 . 1 2 . . 9 3 . . . 5 . . . 4 1 7 1 3 . 2 2 . Assault 17 | . . . . . . . . 1 . . . 3 1 . . . . . . . . . 6 4 1 . 1 . . Garrison 12 | . . . . . . 1 . . . . . . 3 . . . 1 . . . 1 . . 3 3 . . . . Intercept . | . . . . . . . . . . . . . . . . . . . . . . . . . . . . . . Searches Triggered . | . . . . . . . . . . . . . . . . . . . . . . . . . . . . . . Construction Impeded 3 | . . . . . . . . . 1 . . 1 . . . . . . . . . . . . 1 . . . . Haulers Reinforced 2 | . . . . . . . . . . . . 2 . . . . . . . . . . . . . . . . . Active Scanning Responses . | . . . . . . . . . . . . . . . . . . . . . . . . . . . . . . Cargo Convoy Interrupts 1 | . . . . . . . . . . . . . . . . . 1 . . . . . . . . . . . . Stealth | -11 -10 -10 -9 -9 -9 -7 -7 -6 -6 -6 -6 -6 -5 -5 -5 -5 -4 -4 -4 -4 -3 -3 -3 -2 -2 -2 -1 -1 -1 --------- Run | Yrd Mat Min Mat Sto Rec Fac Gar Fac Ext Cet Arc Hub Fac Gar Fac Gar Fac Gar Fac Gar Res Qua Sec Res Tes Gar Acc Com Ac0 Distress Signals 63 | . 2 1 3 1 . . . 2 4 2 . 9 1 . . . 4 . . 1 4 1 4 2 3 . . 19 . Communications Jammed 241 | . . . . . . . . . . . . . . . . . 31 . 8 67 70 9 . . . . 54 2 . Distress Signals 239 | . . . . . . . . . . . . . . . . . 30 . 8 67 70 8 . . . . 54 2 . Times Spotted 878 | . 29 6 22 34 5 9 39 26 38 11 7 41 46 21 1 26 46 25 9 38 13 34 105 51 41 36 43 26 50 Peak Tracking Total 16 | . 4 2 5 6 3 3 8 5 4 5 1 13 7 10 1 5 8 3 3 5 4 3 15 16 5 9 6 4 7 Tactical Retreats 57 | . . 1 . 6 . . 7 2 4 . . . 3 1 . 1 3 1 1 2 . 2 12 2 . 3 4 1 1 Traps | -11 -10 -10 -9 -9 -9 -7 -7 -6 -6 -6 -6 -6 -5 -5 -5 -5 -4 -4 -4 -4 -3 -3 -3 -2 -2 -2 -1 -1 -1 ------- Run | Yrd Mat Min Mat Sto Rec Fac Gar Fac Ext Cet Arc Hub Fac Gar Fac Gar Fac Gar Fac Gar Res Qua Sec Res Tes Gar Acc Com Ac0 Traps Triggered 27 | . . . 1 . . . 2 1 2 . . 1 2 . . . 1 4 2 5 1 1 1 . . 3 . . . Indirectly . | . . . . . . . . . . . . . . . . . . . . . . . . . . . . . . Trap Hack Attempts . | . . . . . . . . . . . . . . . . . . . . . . . . . . . . . . Triggered . | . . . . . . . . . . . . . . . . . . . . . . . . . . . . . . Disarmed . | . . . . . . . . . . . . . . . . . . . . . . . . . . . . . . Reprogrammed 6 | . . . . 6 . . . . . . . . . . . . . . . . . . . . . . . . . Reused . | . . . . . . . . . . . . . . . . . . . . . . . . . . . . . . Traps Extracted . | . . . . . . . . . . . . . . . . . . . . . . . . . . . . . . Installed . | . . . . . . . . . . . . . . . . . . . . . . . . . . . . . . Triggered . | . . . . . . . . . . . . . . . . . . . . . . . . . . . . . . Machines | -11 -10 -10 -9 -9 -9 -7 -7 -6 -6 -6 -6 -6 -5 -5 -5 -5 -4 -4 -4 -4 -3 -3 -3 -2 -2 -2 -1 -1 -1 ---------- Run | Yrd Mat Min Mat Sto Rec Fac Gar Fac Ext Cet Arc Hub Fac Gar Fac Gar Fac Gar Fac Gar Res Qua Sec Res Tes Gar Acc Com Ac0 Machines Disabled 110 | . 2 . 2 2 1 . 3 12 6 1 2 3 1 1 3 7 . 4 . 3 1 3 20 4 12 5 2 2 8 Max in Single Turn 5 | . 1 . 1 1 1 . 1 5 1 1 . . 1 1 . 1 . 1 . 1 1 1 2 3 2 1 1 1 1 Garrison Access 8 | . . . . 1 . . . . . . . 1 1 . . . 1 . . . 2 . . 1 . . 1 . . Garrison Relay 17 | . . . . . . . 3 . . . . . . 1 . 4 . 4 . 3 . . . . . 2 . . . Network Hub 2 | . . . . . . . . . . . . 2 . . . . . . . . . . . . . . . . . Machines Repaired . | . . . . . . . . . . . . . . . . . . . . . . . . . . . . . . Machines Dismantled . | . . . . . . . . . . . . . . . . . . . . . . . . . . . . . . Machines Sabotaged . | . . . . . . . . . . . . . . . . . . . . . . . . . . . . . . Overloaded Fab Kills . | . . . . . . . . . . . . . . . . . . . . . . . . . . . . . . Hacking | -11 -10 -10 -9 -9 -9 -7 -7 -6 -6 -6 -6 -6 -5 -5 -5 -5 -4 -4 -4 -4 -3 -3 -3 -2 -2 -2 -1 -1 -1 --------- Run | Yrd Mat Min Mat Sto Rec Fac Gar Fac Ext Cet Arc Hub Fac Gar Fac Gar Fac Gar Fac Gar Res Qua Sec Res Tes Gar Acc Com Ac0 Machines Accessed 133 | . 6 1 5 9 10 5 3 5 7 1 . 8 8 2 3 3 8 2 4 1 3 6 11 2 13 1 6 . . Terminals 93 | . 4 . 4 7 2 3 3 4 7 1 . 8 4 2 2 3 3 2 1 1 2 4 11 1 8 1 5 . . Fabricators 5 | . . . . . . 1 . . . . . . 1 . . . 1 . 1 . . . . . 1 . . . . Repair Stations 5 | . . . . 1 . . . 1 . . . . 1 . . . 1 . 1 . . . . . . . . . . Recycling Units 9 | . 2 . . . 7 . . . . . . . . . . . . . . . . . . . . . . . . Scanalyzers 7 | . . . 1 . . . . . . . . . . . . . 1 . . . . 2 . . 3 . . . . Garrison Access 12 | . . . . 1 . 1 . . . . . . 2 . 1 . 2 . 1 . 1 . . 1 1 . 1 . . Total Hacks 348 | . 17 1 15 21 14 6 9 14 13 1 . 26 28 6 7 7 27 7 12 1 10 13 34 3 42 2 12 . . Successful 167 | . 9 1 8 16 11 5 3 4 5 . . 11 16 3 3 4 14 2 6 1 4 5 9 3 17 1 6 . . Failed 181 | . 8 . 7 5 3 1 6 10 8 1 . 15 12 3 4 3 13 5 6 . 6 8 25 . 25 1 6 . . Catastrophic 41 | . . . . . 1 1 . 1 2 . . 5 1 . 2 1 6 2 2 . 3 1 4 . 8 . 1 . . Database Lockouts . | . . . . . . . . . . . . . . . . . . . . . . . . . . . . . . Manual 177 | . 11 . 12 9 13 3 2 11 2 1 . 24 15 1 6 3 9 . 10 . 6 3 10 1 21 . 4 . . Terminals 263 | . 15 . 12 17 5 3 9 12 13 1 . 26 16 6 6 7 7 7 6 1 9 5 34 2 31 2 11 . . Fabricators 19 | . . . . . . 2 . . . . . . 7 . . . 7 . 2 . . . . . 1 . . . . Repair Stations 17 | . . . . 2 . . . 2 . . . . 3 . . . 7 . 3 . . . . . . . . . . Recycling Units 9 | . 2 . . . 7 . . . . . . . . . . . . . . . . . . . . . . . . Scanalyzers 24 | . . . 3 . . . . . . . . . . . . . 4 . . . . 8 . . 9 . . . . Garrison Access 13 | . . . . 2 . 1 . . . . . . 2 . 1 . 2 . 1 . 1 . . 1 1 . 1 . . Terminal Hacks 69 | . 5 1 3 6 3 . 3 2 5 . . 5 3 3 . 4 1 2 . 1 2 1 6 1 7 1 4 . . Part Schematic 2 | . 1 . 1 . . . . . . . . . . . . . . . . . . . . . . . . . . Robot Schematic 1 | . . . . . 1 . . . . . . . . . . . . . . . . . . . . . . . . Robot Analysis 4 | . 2 . . . . . . . 2 . . . . . . . . . . . . . . . . . . . . Prototype ID Bank 3 | . 1 . . 1 . . . . . . . . . . . . . . . . . . . . 1 . . . . Open Door 14 | . . 1 . 2 . . . . 2 . . . . 1 . 1 . . . . . . 4 . . . 3 . . Level Access Points 1 | . . . . . . . . . . . . . . . . . . . . . . . . 1 . . . . . Branch Access Points 2 | . . . . . . . . . . . . . . . . . . . . . 1 . . . . . 1 . . Emergency Access Points 4 | . . . . . . . 1 . . . . . . 1 . 1 . 1 . . . . . . . . . . . Unreport Threat 11 | . . . . . . . . 1 . . . 3 1 . . . 1 . . . 1 1 . . 3 . . . . Locate Traps 8 | . . . . 2 . . . 1 1 . . 1 1 . . . . . . . . . 1 . 1 . . . . Reprogram Traps 1 | . . . . 1 . . . . . . . . . . . . . . . . . . . . . . . . . Hauler Manifests 1 | . . . 1 . . . . . . . . . . . . . . . . . . . . . . . . . . Registered Components 1 | . . . 1 . . . . . . . . . . . . . . . . . . . . . . . . . . Registered Prototypes 1 | . . . . . . . . . . . . . . . . . . . . . . . . . 1 . . . . Zone Layout 5 | . 1 . . . . . . . . . . 1 1 . . . . . . . . . 1 . 1 . . . . Garrison Registry 5 | . . . . . . . . . . . . . . 1 . 1 . 1 . 1 . . . . . 1 . . . Patrol Navigation 2 | . . . . . . . 1 . . . . . . . . 1 . . . . . . . . . . . . . Security Stations 1 | . . . . . . . 1 . . . . . . . . . . . . . . . . . . . . . . Release Object 2 | . . . . . 2 . . . . . . . . . . . . . . . . . . . . . . . . Fabricator Hacks 6 | . . . . . . 1 . . . . . . 2 . . . 2 . 1 . . . . . . . . . . Network Status 4 | . . . . . . 1 . . . . . . 1 . . . 1 . 1 . . . . . . . . . . Build 2 | . . . . . . . . . . . . . 1 . . . 1 . . . . . . . . . . . . Repair Station Hacks 5 | . . . . 2 . . . . . . . . 2 . . . 1 . . . . . . . . . . . . Scan Component 3 | . . . . 1 . . . . . . . . 1 . . . 1 . . . . . . . . . . . . Repair 2 | . . . . 1 . . . . . . . . 1 . . . . . . . . . . . . . . . . Recycling Unit Hacks . | . . . . . . . . . . . . . . . . . . . . . . . . . . . . . . Scanalyzer 10 | . . . 3 . . . . . . . . . . . . . 4 . . . . 1 . . 2 . . . . Insert Component 5 | . . . 1 . . . . . . . . . . . . . 2 . . . . . . . 2 . . . . Analyze 3 | . . . 1 . . . . . . . . . . . . . 2 . . . . . . . . . . . . Retrieve Study 2 | . . . 1 . . . . . . . . . . . . . . . . . . 1 . . . . . . . Garrison Access Hacks 12 | . . . . 1 . 1 . . . . . . 2 . 1 . 2 . 1 . 1 . . 1 1 . 1 . . Unlock Access 6 | . . . . . . 1 . . . . . . 1 . 1 . 1 . 1 . . . . . 1 . . . . Seal Access 6 | . . . . 1 . . . . . . . . 1 . . . 1 . . . 1 . . 1 . . 1 . . Unauthorized Hacks 65 | . 4 . 2 7 8 3 . 2 . . . 6 7 . 2 . 4 . 4 . 1 3 3 1 7 . 1 . . Terminals 44 | . 2 . 2 7 1 2 . 2 . . . 6 4 . 2 . 1 . 2 . 1 2 3 1 5 . 1 . . Track 6 | . . . . . . . . . . . . 4 . . . . . . . . . . 1 . 1 . . . . Assimilate 6 | . . . . . . 1 . . . . . . 1 . . . . . . . . 2 . . 2 . . . . Botnet 18 | . 1 . 1 1 1 1 . 1 . . . 2 2 . 1 . 1 . 1 . 1 . 1 1 1 . 1 . . Operators 9 | . 1 . 1 1 . . . 1 . . . . 1 . 1 . . . 1 . . . 1 . 1 . . . . Skim 5 | . . . . 5 . . . . . . . . . . . . . . . . . . . . . . . . . Fabricators 8 | . . . . . . 1 . . . . . . 2 . . . 3 . 1 . . . . . 1 . . . . Prioritize 1 | . . . . . . . . . . . . . . . . . 1 . . . . . . . . . . . . Liberate 3 | . . . . . . . . . . . . . 1 . . . 1 . . . . . . . 1 . . . . Haulers 4 | . . . . . . 1 . . . . . . 1 . . . 1 . 1 . . . . . . . . . . Repair Stations 2 | . . . . . . . . . . . . . 1 . . . . . 1 . . . . . . . . . . Mechanics 2 | . . . . . . . . . . . . . 1 . . . . . 1 . . . . . . . . . . Recycling Units 9 | . 2 . . . 7 . . . . . . . . . . . . . . . . . . . . . . . . Tunnel 9 | . 2 . . . 7 . . . . . . . . . . . . . . . . . . . . . . . . Scanalyzers 2 | . . . . . . . . . . . . . . . . . . . . . . 1 . . 1 . . . . Researchers 2 | . . . . . . . . . . . . . . . . . . . . . . 1 . . 1 . . . . Garrison Access . | . . . . . . . . . . . . . . . . . . . . . . . . . . . . . . Data Cores Recovered 1 | . . . . . . . . . 1 . . . . . . . . . . . . . . . . . . . . Used 1 | . . . . . . . . . 1 . . . . . . . . . . . . . . . . . . . . Hacking Detections 70 | . 3 . 3 5 1 2 3 4 4 1 . 7 3 1 2 1 5 1 . . 2 2 8 . 9 . 3 . . Full Trace Events 2 | . . . . . . . 1 . . . . 1 . . . . . . . . . . . . . . . . . Feedback Events . | . . . . . . . . . . . . . . . . . . . . . . . . . . . . . . Feedback Blocked . | . . . . . . . . . . . . . . . . . . . . . . . . . . . . . . Robot Schematics Acquired 2 | . . . . . 1 . . . . . . . . . . . . . . . . . 1 . . . . . . Robots Built . | . . . . . . . . . . . . . . . . . . . . . . . . . . . . . . Authchips . | . . . . . . . . . . . . . . . . . . . . . . . . . . . . . . Time . | . . . . . . . . . . . . . . . . . . . . . . . . . . . . . . Total Robot Build Rating . | . . . . . . . . . . . . . . . . . . . . . . . . . . . . . . Part Schematics Acquired 10 | . 1 . 2 . . . . . . . . . . . . . 1 . . . . . 6 . . . . . . Parts Built 3 | . . . . . . . . . . . . . 1 . . . 2 . . . . . . . . . . . . Authchips . | . . . . . . . . . . . . . . . . . . . . . . . . . . . . . . Time 267 | . . . . . . . . . . . . . 139 . . . 128 . . . . . . . . . . . . Total Part Build Rating 25 | . . . . . . . . . . . . . 9 . . . 16 . . . . . . . . . . . . Part Studies Acquired 2 | . . . 1 . . . . . . . . . . . . . . . . . . 1 . . . . . . . Parts Repaired 2 | . . . . 1 . . . . . . . . 1 . . . . . . . . . . . . . . . . Time 121 | . . . . 13 . . . . . . . . 108 . . . . . . . . . . . . . . . . Parts Recycled . | . . . . . . . . . . . . . . . . . . . . . . . . . . . . . . Recycled Matter . | . . . . . . . . . . . . . . . . . . . . . . . . . . . . . . Retrieved Matter . | . . . . . . . . . . . . . . . . . . . . . . . . . . . . . . Retrieved Components . | . . . . . . . . . . . . . . . . . . . . . . . . . . . . . . Parts Scanalyzed 3 | . . . 1 . . . . . . . . . . . . . 1 . . . . . . . 1 . . . . Part Schematics Acquired 2 | . . . 1 . . . . . . . . . . . . . 1 . . . . . . . . . . . . Parts Damaged 3 | . . . 1 . . . . . . . . . . . . . 1 . . . . . . . 1 . . . . Bothacking | -11 -10 -10 -9 -9 -9 -7 -7 -6 -6 -6 -6 -6 -5 -5 -5 -5 -4 -4 -4 -4 -3 -3 -3 -2 -2 -2 -1 -1 -1 ------------ Run | Yrd Mat Min Mat Sto Rec Fac Gar Fac Ext Cet Arc Hub Fac Gar Fac Gar Fac Gar Fac Gar Res Qua Sec Res Tes Gar Acc Com Ac0 Used RIF Installer 7 | . . . . . . . 1 . . . . . . 1 . 1 . 1 . 2 . . . . . 1 . . . Hotswap 1 | . . . . . . . . . . . . . . 1 . . . . . . . . . . . . . . . Signal Jammer 1 | . . . . . . . . . . . . . . . . . . . . . . . . . . 1 . . . Robot Detection 1 | . . . . . . . . . . . . . . . . . . . . 1 . . . . . . . . . Watcher Feeds 1 | . . . . . . . . . . . . . . . . . . 1 . . . . . . . . . . . Patrol Navigation 1 | . . . . . . . . . . . . . . . . . . . . 1 . . . . . . . . . Structural Interface 1 | . . . . . . . . . . . . . . . . 1 . . . . . . . . . . . . . Robots Hacked 123 | . . . . . . . 5 6 9 . . 1 1 11 2 9 18 10 2 15 2 1 7 . 8 6 6 4 . Non-combat 31 | . . . . . . . . 3 3 . . . . . 2 1 7 . . . 2 1 2 . 6 . 2 2 . Combat 92 | . . . . . . . 5 3 6 . . 1 1 11 . 8 11 10 2 15 . . 5 . 2 6 4 2 . Robot Hacks Applied 141 | . . . . . . . 5 6 11 . . 1 2 11 4 11 18 10 3 16 2 2 9 . 8 6 6 10 . parse_system 12 | . . . . . . . . . 4 . . . . 1 . . 1 . . . . 1 1 . . 1 . 3 . find_chute 1 | . . . . . . . . . . . . . . . . . 1 . . . . . . . . . . . . deconstruct_machine 1 | . . . . . . . . . . . . . . . . . . . . . . . . . . . . 1 . ignore_repairs 9 | . . . . . . . . . . . . . . . . . . . . . . . 2 . 5 . 2 . . drop_inventory 5 | . . . . . . . . 2 . . . . . . 1 . 2 . . . . . . . . . . . . ignore_parts 4 | . . . . . . . . 1 2 . . . . . . . 1 . . . . . . . . . . . . purge_threat 8 | . . . . . . . . . 2 . . . . . 1 1 1 . . . . . . . 1 . . 2 . locate_traps 1 | . . . . . . . . . 1 . . . . . . . . . . . . . . . . . . . . block_reporting 1 | . . . . . . . . . . . . . . . 1 . . . . . . . . . . . . . . map_route 3 | . . . . . . . . . . . . . . . . . 1 . . . 1 . 1 . . . . . . emergency_deploy 1 | . . . . . . . . . . . . . . . . . . . . . . . 1 . . . . . . find_garrison 3 | . . . . . . . . . . . . . 1 . . . 1 . 1 . . . . . . . . . . scatter_targeting 1 | . . . . . . . . . . . . . . . . 1 . . . . . . . . . . . . . disrupt_area 2 | . . . . . . . . . . . . . . 1 . . . 1 . . . . . . . . . . . spike_heat 1 | . . . . . . . . . . . . . . . . . . . . . . . . . 1 . . . . amplify_resonance 10 | . . . . . . . 2 . . . . . . 3 . 2 . 1 . 1 . . . . . 1 . . . reboot_system 7 | . . . . . . . . . . . . . 1 . . 1 . . . 1 . . 1 . . 1 2 . . overwrite_iff 25 | . . . . . . . 1 1 1 . . . . 3 . 3 4 7 . 5 . . . . . . . . . streamctrl_low 2 | . . . . . . . . . . . . . . . . . . . . . . . . . . . . 2 . formatsys_low 7 | . . . . . . . . . . . . . . . 1 1 1 . . . 1 1 2 . . . . . . formatsys_high 37 | . . . . . . . 2 2 1 . . 1 . 3 . 2 5 1 2 9 . . 1 . 1 3 2 2 . Relay Couplers Released 79 | . . . . . . . 11 . . . . 2 5 5 . 15 1 15 . 14 2 . . . . 9 . . . Machine Destruction 75 | . . . . . . . 11 . . . . 2 1 5 . 15 1 15 . 14 2 . . . . 9 . . . Programmers 4 | . . . . . . . . . . . . . 4 . . . . . . . . . . . . . . . . Attached 36 | . . . . . . . 2 2 1 . . 1 1 3 1 2 3 3 2 4 2 1 1 . 1 2 2 2 . Fabnet Peak Effective % . | . . . . . . . . . . . . . . . . . . . . . . . . . . . . . . Robots Rewired 32 | . . . . . . . . 1 23 . . . . 1 . 2 1 2 . . . . . . . 1 . 1 . Allies Hacked 2 | . . . . . . . . . . . . . . . . . . . . . . 1 . . 1 . . . . Hacks Repelled 1 | . . . . . . . . . . . . 1 . . . . . . . . . . . . . . . . . Allies | -11 -10 -10 -9 -9 -9 -7 -7 -6 -6 -6 -6 -6 -5 -5 -5 -5 -4 -4 -4 -4 -3 -3 -3 -2 -2 -2 -1 -1 -1 -------- Run | Yrd Mat Min Mat Sto Rec Fac Gar Fac Ext Cet Arc Hub Fac Gar Fac Gar Fac Gar Fac Gar Res Qua Sec Res Tes Gar Acc Com Ac0 Total Allies 130 | . . . . 10 . 1 5 4 31 5 . 1 . 9 1 8 11 10 2 13 1 3 3 . 2 4 2 4 . Largest Group 30 | . . . . 10 10 8 3 4 30 30 28 25 . 6 7 10 5 2 1 6 4 2 2 . 1 3 4 4 . Highest-Rated Group 1260 | . . . . 88 88 90 191 186 1008 1260 1166 1090 . 392 418 522 301 100 49 292 170 71 113 . 69 180 284 502 . Highest-Rated Ally 215 | . . . . 16 16 26 95 95 159 159 96 96 . 148 148 148 144 51 49 56 49 45 64 . 69 119 110 215 . Total Orders 114 | . . . . . 2 . 5 2 . 3 2 12 . 2 . 17 5 . . 11 1 6 2 18 5 5 1 15 . STAY 56 | . . . . . 1 . 3 1 . 3 1 9 . 1 . 8 3 . . 5 . 4 1 . 2 3 . 11 . ROAM 2 | . . . . . . . . . . . . . . . . 1 . . . 1 . . . . . . . . . FOLLOW 31 | . . . . . 1 . 2 1 . . 1 . . 1 . 8 1 . . 5 . 2 1 . 1 2 1 4 . AID 2 | . . . . . . . . . . . . . . . . . 1 . . . 1 . . . . . . . . EXPLORE 19 | . . . . . . . . . . . . 1 . . . . . . . . . . . 17 1 . . . . RETURN 4 | . . . . . . . . . . . . 2 . . . . . . . . . . . 1 1 . . . . Ally Attacks 937 | . . . . . 52 49 12 79 76 48 46 208 . 8 10 92 30 41 10 63 13 . 19 . 5 21 34 21 . Total Damage 23508 | . . . . . 494 367 476 2924 2535 890 857 5342 . 116 196 2047 711 1023 372 1404 484 . 127 . 293 720 893 1237 . Kills 164 | . . . . . 7 . 5 18 20 12 4 46 . . 3 16 3 5 1 12 3 . . . . 4 4 1 . Allies Corrupted 4 | . . . . . . . . . . . . . . . . 1 . 1 1 . . . . . . . 1 . . Allies Melted 2 | . . . . . . . . . . . . 1 . 1 . . . . . . . . . . . . . . . Intel | -11 -10 -10 -9 -9 -9 -7 -7 -6 -6 -6 -6 -6 -5 -5 -5 -5 -4 -4 -4 -4 -3 -3 -3 -2 -2 -2 -1 -1 -1 ------- Run | Yrd Mat Min Mat Sto Rec Fac Gar Fac Ext Cet Arc Hub Fac Gar Fac Gar Fac Gar Fac Gar Res Qua Sec Res Tes Gar Acc Com Ac0 Active Infowar (turns) 31259 | 16 908 921 1570 39 . . . . . . . . 94 . . . 796 1240 374 1146 673 1117 . . . 1129 1318 19127 791 Optics 21236 | . . . . . . . . . . . . . . . . . . . . . . . . . . . 1318 19127 791 Terrain 920 | 1 . . . . . . . . . . . . 92 . . . . . . . . . . . . . 619 . 208 Structural 351 | . 59 . 292 . . . . . . . . . . . . . . . . . . . . . . . . . . Seismic 3102 | 15 849 921 1278 39 . . . . . . . . . . . . . . . . . . . . . . . . . Jamming 6477 | . . . . . . . . . . . . . 2 . . . 796 1240 374 1146 673 1117 . . . 1129 . . . Robot Analysis Total 4 | . 2 . . . . . . . 2 . . . . . . . . . . . . . . . . . . . . Derelict Logs Recovered 1 | . . 1 . . . . . . . . . . . . . . . . . . . . . . . . . . . Drone Launches 47 | . . . . . . . . . . . . 4 . . . . . . . . . . . 41 2 . . . . Drone Recoveries 38 | . . . . . . . . . . . . 2 . . . . . . . . . . . 35 1 . . . . Exploration | -11 -10 -10 -9 -9 -9 -7 -7 -6 -6 -6 -6 -6 -5 -5 -5 -5 -4 -4 -4 -4 -3 -3 -3 -2 -2 -2 -1 -1 -1 ------------- Run | Yrd Mat Min Mat Sto Rec Fac Gar Fac Ext Cet Arc Hub Fac Gar Fac Gar Fac Gar Fac Gar Res Qua Sec Res Tes Gar Acc Com Ac0 Turns Passed 58270 | 151 1378 992 1641 2279 2970 548 1475 1090 1914 481 589 1146 1570 1079 278 1406 1896 1241 374 1146 712 1829 4741 861 1813 1433 1319 19127 791 Spaces Moved 30431 | 64 701 570 924 1227 1426 473 963 498 985 252 121 718 748 460 131 599 802 567 305 762 547 940 1904 361 945 748 658 10411 621 Core 17 | 4 . . . . . . . . . . 13 . . . . . . . . . . . . . . . . . . Treads 7984 | 60 701 570 924 845 141 180 914 96 173 . 72 718 239 . . 500 11 68 . . . 607 477 32 496 . . 160 . Legs 17837 | . . . . . . 293 . 402 812 252 36 . 155 460 131 99 791 499 305 762 547 333 1427 329 449 748 658 7728 621 Wheels 1769 | . . . . 382 1285 . 49 . . . . . . . . . . . . . . . . . . . . 53 . Hover 2225 | . . . . . . . . . . . . . 354 . . . . . . . . . . . . . . 1871 . Flight 599 | . . . . . . . . . . . . . . . . . . . . . . . . . . . . 599 . Fastest Speed 50 | 50 160 160 160 150 107 107 107 107 134 134 134 105 105 205 205 205 152 119 98 98 98 109 112 139 124 124 127 63 63 Average Speed 136 | 153 160 160 160 158 166 107 107 151 145 134 367 135 154 205 205 213 187 145 98 98 107 134 186 164 147 160 138 107 65 Slowest Speed 2300 | 160 160 160 160 240 317 107 107 195 195 134 2300 136 221 205 205 215 215 203 119 98 134 140 238 240 185 259 139 264 144 Overloaded Moves . | . . . . . . . . . . . . . . . . . . . . . . . . . . . . . . Propulsion Burnouts . | . . . . . . . . . . . . . . . . . . . . . . . . . . . . . . Robots Hopped . | . . . . . . . . . . . . . . . . . . . . . . . . . . . . . . Potential Cave-ins 6 | . . . . . . . . . . . . . . . . . . . . . . . . . 2 . . 4 . Cave-ins Triggered . | . . . . . . . . . . . . . . . . . . . . . . . . . . . . . . Teleports 3 | . . . . . . . . . . . . . . . . . . . . . . . . 1 . . . 1 1 Exploration Rate (%) 56 | 4 73 98 54 94 97 12 91 14 73 74 75 73 15 66 5 69 21 72 18 66 18 95 81 18 97 63 37 87 41 Regions Visited 29 Branch Regions 12 Pre-discovered Areas 12 | . 2 2 . 1 7 . . . . . . . . . . . . . . . . . . . . . . . . Known Exits Taken 10 | . . . 1 . 1 1 . . . . . . 1 . 1 . 1 . 1 . 1 . . . 1 . 1 . . Unknown Exits Taken 13 | 1 1 1 . 1 . . . 1 1 1 1 1 . . . . . . . . . 1 1 1 . . . 1 . Scrap Searched 1 | . . 1 . . . . . . . . . . . . . . . . . . . . . . . . . . . Spaces Dug 497 | . 17 . 11 1 . . 18 4 31 20 7 25 43 10 1 4 5 1 . 1 . 16 82 38 36 82 38 4 2 Terrain Destroyed 1201 | . 49 4 33 29 . . 32 28 46 20 7 36 91 13 1 5 57 18 8 14 27 25 239 79 68 93 59 28 92 Melee 115 | . 2 . 4 1 . . 11 4 11 20 7 20 9 2 . . 1 1 . 1 . 5 16 . . . . . . Projectile 602 | . 1 4 2 2 . . . 4 16 . . 11 43 11 1 5 49 17 8 13 7 20 142 29 59 11 59 28 60 AOE 484 | . 46 . 27 26 . . 21 20 19 . . 5 39 . . . 7 . . . 20 . 81 50 9 82 . . 32 Terrain Rammed . | . . . . . . . . . . . . . . . . . . . . . . . . . . . . . . Walls Destroyed . | . . . . . . . . . . . . . . . . . . . . . . . . . . . . . . Machines Disabled . | . . . . . . . . . . . . . . . . . . . . . . . . . . . . . . Actions | -11 -10 -10 -9 -9 -9 -7 -7 -6 -6 -6 -6 -6 -5 -5 -5 -5 -4 -4 -4 -4 -3 -3 -3 -2 -2 -2 -1 -1 -1 --------- Run | Yrd Mat Min Mat Sto Rec Fac Gar Fac Ext Cet Arc Hub Fac Gar Fac Gar Fac Gar Fac Gar Res Qua Sec Res Tes Gar Acc Com Ac0 Total 44512 | 100 854 630 1025 1456 1969 506 1206 788 1338 354 249 827 990 562 139 690 1049 852 365 1076 623 1328 2649 535 1291 919 956 18290 896 Wait 10360 | 1 45 35 21 132 465 11 64 229 192 40 112 34 42 20 3 12 54 123 34 190 10 187 316 41 132 48 184 7553 30 Move 30405 | 63 700 569 923 1226 1425 473 962 497 984 251 120 717 748 459 130 598 802 566 305 761 546 939 1903 360 945 746 657 10410 620 Hop . | . . . . . . . . . . . . . . . . . . . . . . . . . . . . . . Pick Up 405 | 8 15 1 9 13 2 4 13 9 4 12 2 4 28 12 . 9 17 14 4 17 9 23 30 12 23 12 6 85 8 Fast Attach 85 | 7 . . 1 1 1 3 1 1 . . 1 1 4 2 . 2 8 . 3 2 3 4 13 14 7 3 2 1 . Attach 171 | 1 2 . 3 . 1 1 4 2 8 1 . 6 16 1 . 3 13 9 1 8 6 12 25 9 15 3 4 10 7 Detach 108 | 1 . . 2 . 6 . 3 2 6 1 . 1 6 1 . 2 6 7 . 3 4 5 15 8 11 3 4 7 4 Swap 478 | 2 32 10 20 21 4 1 9 8 9 11 2 12 22 6 1 10 20 25 8 22 13 43 49 9 25 21 16 18 29 Drop 375 | . 10 5 11 10 18 4 12 . 4 10 2 3 20 10 . 7 12 12 1 9 6 28 27 18 26 14 6 82 8 Fire 1787 | 17 46 10 29 51 32 9 71 31 114 1 . 26 93 48 5 44 115 60 7 57 21 81 251 60 107 58 76 77 190 Melee 271 | . 4 . 5 1 15 . 66 9 13 27 10 23 11 2 . 3 2 21 . 4 2 6 18 . . . . 29 . Ram 2 | . . . . 1 . . . . . . . . . . . . . . . . . . 1 . . . . . . Kick 11 | . . . . . . . . . 3 . . . . . . . . . 1 . 3 . 1 1 . . 1 1 . Crush 1 | . . . 1 . . . . . . . . . . . . . . . . . . . . . . . . . . Escape Stasis 25 | . . . . . . . . . . . . . . . . . . 15 . . . . . . . 10 . . . Rewire 25 | . . . . . . . 1 . 1 . . . . 1 . . . . 1 3 . . . . . 1 . 17 . Trap . | . . . . . . . . . . . . . . . . . . . . . . . . . . . . . . Miscellaneous 3 | . . . . . . . . . . . . . . . . . . . . . . . . 3 . . . . . Route ------- -11/Scrapyard -10/Materials (discovered 4 exits: *Mat x3 / *Min) -10/Mines (discovered 2 exits: *Mat x2) -9/Materials (discovered 4 exits: *Mat / *Min x2 / *Sto) -9/Storage (discovered 2 exits: *Mat / *Rec) -9/Recycling -7/Factory -7/Garrison (discovered 3 exits: *Fac x3) -6/Factory -6/Extension (discovered 2 exits: *Fac / *Cet) -6/Cetus (discovered 2 exits: *Fac / [*Arc]) -6/Archives -6/Hub_04(d) (discovered 2 exits: *Fac x2) -5/Factory -5/Garrison (discovered 3 exits: *Fac x3) -5/Factory -5/Garrison (discovered 3 exits: *Fac x3) -4/Factory (discovered 4 exits: *Res x3 / Gar) -4/Garrison (discovered 3 exits: *Fac x3) -4/Factory (discovered 2 exits: [*Upp] / Gar) -4/Garrison (discovered 3 exits: *Res x3) -3/Research (discovered 3 exits: Arm / *Qua x2) -3/Quarantine (discovered 3 exits: *Res / *Sec / [*Frg]) -3/Section 7 -2/Research (discovered 4 exits: Acc x3 / *Tes) -2/Testing (discovered 2 exits: *Acc / Gar) -2/Garrison (discovered 3 exits: *Acc x3) -1/Access -1/Command (discovered 3 exits: [*Sur x2] / [*Ac0]) -1/Access_0 Near Former Tau Ceti IV History --------- Turn | Location | Event 3 | -11/Scrapyard | Discovered new exit (range 15) 152 | -11/Scrapyard | Entered Materials 321 | -10/Materials | Build established: Mutant 360 | -10/Materials | Discovered new exit (range 16) 909 | -10/Materials | Discovered new exit (range 5) 1423 | -10/Materials | Discovered new exit (range 14) 1423 | -10/Materials | Discovered new exit (range 21) 1530 | -10/Materials | Entered Mines 1602 | -10/Mines | Learned location of Storage (-9) 2123 | -10/Mines | Met a Derelict shopkeep closing up shop 2271 | -10/Mines | Discovered new exit (range 3) 2374 | -10/Mines | Discovered new exit (range 7) 2522 | -10/Mines | Entered Materials 2522 | -9/Materials | Evolved 2 slots: Propulsion x1, Utility x1 2729 | -9/Materials | Discovered new exit (range 3) 3024 | -9/Materials | Discovered new exit (range 15) 3210 | -9/Materials | Identified exit to Mines 3265 | -9/Materials | Identified exit to Storage 3604 | -9/Materials | Discovered new exit (range 5) 3882 | -9/Materials | Discovered exit to Mines (range 7) 4163 | -9/Materials | Entered Storage 4551 | -9/Storage | Build established: Scavenger-Mutant 4805 | -9/Storage | Repaired Huge Storage Unit 5175 | -9/Storage | Used back door to open Recycling access 5175 | -9/Storage | Discovered new exit (range 5) 5207 | -9/Storage | Learned location of 1 exit from Recycling 5257 | -9/Storage | Learned Materials security intel 5268 | -9/Storage | Learned location of 2 exits from Materials 5269 | -9/Storage | Learned Materials trap positions 5270 | -9/Storage | Identified exit to Materials 5280 | -9/Storage | Learned Materials emergency access door positions 5300 | -9/Storage | Learned Materials terminal intel 5329 | -9/Storage | Learned location of 1 exit from Recycling 5779 | -9/Storage | Found Prototype Processor 6105 | -9/Storage | Build established: Mutant 6394 | -9/Storage | Assisted by bots powering up and referring to "LRC-V3" 6442 | -9/Storage | Entered Recycling 6442 | -9/Recycling | Accompanied by 10 allies 6443 | -9/Recycling | Identified exit to Scraptown 6443 | -9/Recycling | Identified exit to Factory 6687 | -9/Recycling | Build established: Commander-Mutant 7451 | -9/Recycling | Scanned before Scraplab entrance 7474 | -9/Recycling | Entered Scraplab 7505 | -9/Recycling | Angered Scraplab inhabitants 7507 | -9/Recycling | Found Prototype Device 7522 | -9/Recycling | Identified Scrap Engine 7548 | -9/Recycling | Lost 3 allies 8101 | -9/Recycling | Build established: Commander-Construct 9412 | -9/Recycling | Entered Factory 9412 | -7/Factory | Accompanied by 7 allies 9412 | -7/Factory | Evolved 4 slots: Propulsion x1, Utility x2, Weapon x1 9869 | -7/Factory | Lost 3 allies 9922 | -7/Factory | Garrison activated, responded to threat 9960 | -7/Factory | Identified exit to Garrison 9960 | -7/Factory | Entered Garrison 9960 | -7/Garrison | Accompanied by 1 ally 9974 | -7/Garrison | Lost 4 allies 10056 | -7/Garrison | Triggered checkpoint 10227 | -7/Garrison | Build established: Construct 10304 | -7/Garrison | Triggered checkpoint 10347 | -7/Garrison | Triggered checkpoint 10394 | -7/Garrison | Destroyed 12 combat bots 10460 | -7/Garrison | Triggered checkpoint 10547 | -7/Garrison | Installed Relay Interface Framework 10558 | -7/Garrison | Garrison Relay disabled 10645 | -7/Garrison | Found Hvy. Reflective Plating 10729 | -7/Garrison | Discovered new exit (range 15) 10920 | -7/Garrison | Triggered checkpoint 10930 | -7/Garrison | Garrison Relay disabled 11164 | -7/Garrison | Learned Factory security intel 11192 | -7/Garrison | Found embedded Infiltrators 11195 | -7/Garrison | Discovered new exit (range 12) 11300 | -7/Garrison | Triggered checkpoint 11319 | -7/Garrison | Garrison Relay disabled 11395 | -7/Garrison | Discovered new exit (range 14) 11435 | -7/Garrison | Entered Factory 11435 | -6/Factory | Accompanied by 2 allies 11435 | -6/Factory | Evolved 2 slots: Power x1, Propulsion x1 11603 | -6/Factory | Discovered new exit (range 16) 11639 | -6/Factory | Build established: Bothacker-Construct 12111 | -6/Factory | Lost 3 allies 12268 | -6/Factory | Build established: Construct 12485 | -6/Factory | First assault squad dispatched 12525 | -6/Factory | Entered Extension 12525 | -6/Extension | Accompanied by 1 ally 13172 | -6/Extension | Spotted B-75 Beast 13296 | -6/Extension | Rescued A7 13327 | -6/Extension | Spotted B-75 Beast 13341 | -6/Extension | Allies destroyed B-75 Beast 13362 | -6/Extension | Allies destroyed B-75 Beast 13449 | -6/Extension | Rescued a captive Derelict 13604 | -6/Extension | Rescued a captive Derelict 13605 | -6/Extension | Rescued a captive Derelict 13770 | -6/Extension | Build established: Commander-Construct 14202 | -6/Extension | Rescued a captive Derelict 14205 | -6/Extension | Rescued a captive Derelict 14329 | -6/Extension | Discovered new exit (range 10) 14330 | -6/Extension | Discovered new exit (range 6) 14439 | -6/Extension | Entered Cetus 14439 | -6/Cetus | Accompanied by 30 allies (A7) 14444 | -6/Cetus | Acquired a Cetus Manufacturing Module code from A7 14465 | -6/Cetus | Spotted Cetus Guard 14472 | -6/Cetus | Spotted Cetus Guard 14473 | -6/Cetus | Spotted Cetus Guard 14473 | -6/Cetus | Spotted Cetus Guard 14473 | -6/Cetus | Allies destroyed Cetus Guard 14475 | -6/Cetus | Allies destroyed Cetus Guard 14483 | -6/Cetus | Allies destroyed Cetus Guard 14512 | -6/Cetus | Lost 3 allies 14580 | -6/Cetus | Escorted A7 to Cetus Mainframe 14593 | -6/Cetus | Started Cetus Manufacturing Module 14609 | -6/Cetus | Discovered new exit (range 16) 14618 | -6/Cetus | Manufactured an Enhanced Grunt 14637 | -6/Cetus | Spotted Cetus Guard 14638 | -6/Cetus | Spotted Cetus Guard 14643 | -6/Cetus | Manufactured an Enhanced Grunt 14644 | -6/Cetus | Spotted Cetus Guard 14646 | -6/Cetus | Spotted Cetus Guard 14648 | -6/Cetus | Allies destroyed Cetus Guard 14650 | -6/Cetus | Allies destroyed Cetus Guard 14651 | -6/Cetus | Allies destroyed Cetus Guard 14652 | -6/Cetus | Allies destroyed Cetus Guard 14659 | -6/Cetus | Discovered new exit (range 15) 14668 | -6/Cetus | Manufactured an Enhanced Grunt 14680 | -6/Cetus | Met Revision 17 14693 | -6/Cetus | Manufactured an Enhanced Grunt 14712 | -6/Cetus | Murdered A7 14717 | -6/Cetus | Extracted ID and sensor layout for unrecognized location from A7's data core 14718 | -6/Cetus | Manufactured an Enhanced Grunt 14920 | -6/Cetus | Entered Archives 14920 | -6/Archives | Accompanied by 28 allies 14972 | -6/Archives | Lost 3 allies 14978 | -6/Archives | Discovered new exit (range 16) 15509 | -6/Archives | Entered Hub_04(d) 15509 | -6/Hub_04(d) | Accompanied by 25 allies 16189 | -6/Hub_04(d) | Lost 13 allies 16209 | -6/Hub_04(d) | First assault squad dispatched 16211 | -6/Hub_04(d) | Discovered new exit (range 9) 16217 | -6/Hub_04(d) | Discovered new exit (range 7) 16246 | -6/Hub_04(d) | Spotted B-75 Beast 16399 | -6/Hub_04(d) | Build established: Construct 16581 | -6/Hub_04(d) | Network Hub disabled 16602 | -6/Hub_04(d) | Spotted Lightning 16607 | -6/Hub_04(d) | System corruption reached 10% 16609 | -6/Hub_04(d) | Spotted Lightning 16609 | -6/Hub_04(d) | Spotted Lightning 16630 | -6/Hub_04(d) | System corruption reached 30% 16640 | -6/Hub_04(d) | Network Hub disabled 16655 | -6/Hub_04(d) | Entered Factory 16655 | -5/Factory | Evolved 2 slots: Propulsion x1, Utility x1 16660 | -5/Factory | Lost 11 parts (4p1n2u4w) 16825 | -5/Factory | Repaired Centrium Medium Armor Plating? 17088 | -5/Factory | Watched by a mysterious "MATRIX" hacker. 17152 | -5/Factory | Garrison activated, responded to threat 17155 | -5/Factory | Fabricated Centrium Leg? 17255 | -5/Factory | First assault squad dispatched 18225 | -5/Factory | Identified exit to Garrison 18225 | -5/Factory | Entered Garrison 18293 | -5/Garrison | Triggered checkpoint 18316 | -5/Garrison | Garrison Relay disabled 18384 | -5/Garrison | Discovered new exit (range 51) 18384 | -5/Garrison | Discovered new exit (range 43) 18384 | -5/Garrison | Discovered new exit (range 57) 18473 | -5/Garrison | Triggered checkpoint 18485 | -5/Garrison | Triggered checkpoint 18517 | -5/Garrison | Lost 3 allies 18602 | -5/Garrison | Expanded RIF knowledge: Hotswap 18905 | -5/Garrison | Rewired B-90 Cyclops 18983 | -5/Garrison | Triggered checkpoint 19157 | -5/Garrison | Rescued a captive Derelict 19163 | -5/Garrison | Rescued a captive Derelict 19304 | -5/Garrison | Entered Factory 19304 | -5/Factory | Accompanied by 6 allies 19315 | -5/Factory | Build established: Bothacker-Construct 19577 | -5/Factory | Identified exit to Garrison 19582 | -5/Factory | Entered Garrison 19582 | -5/Garrison | Accompanied by 7 allies 19688 | -5/Garrison | H-XX Assembler disabled 19832 | -5/Garrison | P-70 Sage assimilated allied Sentinel 6b 19864 | -5/Garrison | Triggered checkpoint 19883 | -5/Garrison | Garrison Relay disabled 20100 | -5/Garrison | Spotted B-75 Beast 20104 | -5/Garrison | Core integrity fell below 50% 20110 | -5/Garrison | Allies destroyed B-75 Beast 20125 | -5/Garrison | Triggered checkpoint 20128 | -5/Garrison | Triggered checkpoint 20167 | -5/Garrison | Lost 4 allies 20172 | -5/Garrison | Triggered checkpoint 20232 | -5/Garrison | Triggered checkpoint 20252 | -5/Garrison | Discovered new exit (range 39) 20252 | -5/Garrison | Discovered new exit (range 87) 20252 | -5/Garrison | Discovered new exit (range 30) 20278 | -5/Garrison | Garrison Relay disabled 20547 | -5/Garrison | Expanded RIF knowledge: Structural Interface 20598 | -5/Garrison | Garrison Relay disabled 20750 | -5/Garrison | Triggered checkpoint 20890 | -5/Garrison | Garrison Relay disabled 20988 | -5/Garrison | Entered Factory 20988 | -4/Factory | Accompanied by 4 allies 20988 | -4/Factory | Evolved 2 slots: Utility x1, Weapon x1 21036 | -4/Factory | Discovered new exit (range 9) 21063 | -4/Factory | Identified Exp. Targeting Computer 21240 | -4/Factory | Garrison activated, responded to threat 21295 | -4/Factory | Lost 3 allies 21325 | -4/Factory | Fabricated Adv. Recalibrator (x2) 21529 | -4/Factory | Found Prototype Processor 21756 | -4/Factory | Lost 5 allies 21796 | -4/Factory | Discovered new exit (range 15) 21895 | -4/Factory | Cargo convoy interrupted 21941 | -4/Factory | Lost 6 parts (2p2u2w) 21962 | -4/Factory | Lost 3 allies 22003 | -4/Factory | Lost 3 parts (3w) 22185 | -4/Factory | Core integrity fell below 50% 22288 | -4/Factory | Identified Exp. Signal Interpreter 22308 | -4/Factory | Found Exp. Signal Interpreter 22409 | -4/Factory | System corruption reached 10% 22413 | -4/Factory | P-70 Sage assimilated allied Machinist 7a 22435 | -4/Factory | Build established: Construct 22797 | -4/Factory | Discovered new exit (range 15) 22884 | -4/Factory | Identified exit to Garrison 22884 | -4/Factory | Entered Garrison 23030 | -4/Garrison | Triggered checkpoint 23075 | -4/Garrison | Garrison Relay disabled 23299 | -4/Garrison | Triggered checkpoint 23349 | -4/Garrison | Discovered new exit (range 87) 23349 | -4/Garrison | Discovered new exit (range 72) 23349 | -4/Garrison | Discovered new exit (range 40) 23349 | -4/Garrison | Garrison Relay disabled 23632 | -4/Garrison | Triggered checkpoint 23643 | -4/Garrison | Triggered checkpoint 23644 | -4/Garrison | Spotted B-86 Titan 23654 | -4/Garrison | Build established: Bothacker-Construct 23683 | -4/Garrison | Destroyed B-86 Titan 23700 | -4/Garrison | Core integrity fell below 20% 23758 | -4/Garrison | Triggered checkpoint 23922 | -4/Garrison | Expanded RIF knowledge: Watcher Feeds 23940 | -4/Garrison | Triggered checkpoint 23952 | -4/Garrison | Garrison Relay disabled 24066 | -4/Garrison | Garrison Relay disabled 24074 | -4/Garrison | Triggered checkpoint 24125 | -4/Garrison | Entered Factory 24273 | -4/Factory | Spotted B-86 Titan 24344 | -4/Factory | Discovered new exit (range 9) 24499 | -4/Factory | Identified exit to Garrison 24499 | -4/Factory | Entered Garrison 24574 | -4/Garrison | Spotted B-86 Titan 24625 | -4/Garrison | Triggered checkpoint 24686 | -4/Garrison | Garrison Relay disabled 24784 | -4/Garrison | Destroyed B-86 Titan 24885 | -4/Garrison | Triggered checkpoint 25006 | -4/Garrison | Discovered new exit (range 13) 25062 | -4/Garrison | Garrison Relay disabled 25085 | -4/Garrison | Triggered checkpoint 25126 | -4/Garrison | Expanded RIF knowledge: Patrol Navigation 25218 | -4/Garrison | Triggered checkpoint 25253 | -4/Garrison | Triggered checkpoint 25327 | -4/Garrison | Discovered new exit (range 54) 25327 | -4/Garrison | Discovered new exit (range 22) 25327 | -4/Garrison | Discovered new exit (range 36) 25338 | -4/Garrison | Garrison Relay disabled 25547 | -4/Garrison | Lost 3 allies 25622 | -4/Garrison | Expanded RIF knowledge: Robot Detection 25643 | -4/Garrison | Build established: Botlord-Construct 25645 | -4/Garrison | Entered Research 25645 | -3/Research | Accompanied by 3 allies 25645 | -3/Research | Evolved 2 slots: Power x1, Utility x1 25761 | -3/Research | Lost 3 allies 25772 | -3/Research | Garrison activated, responded to threat 25830 | -3/Research | Destroyed 7 combat bots 25845 | -3/Research | Revision forces began assault on 0b10 25894 | -3/Research | Met up with Revision 17++ 25985 | -3/Research | Spotted B-86 Titan 26017 | -3/Research | Allied Derelicts emerged from ambush trap array 26062 | -3/Research | Discovered new exit (range 15) 26134 | -3/Research | Identified exit to Armory 26134 | -3/Research | Identified exit to Quarantine 26345 | -3/Research | Research terminal network offline 26357 | -3/Research | Entered Quarantine 26621 | -3/Quarantine | Found Prototype Hackware 26688 | -3/Quarantine | Found Fusion Bomb Launcher 26731 | -3/Quarantine | Identified Exp. System Shield 26764 | -3/Quarantine | Found Prototype Processor 26782 | -3/Quarantine | Found Prototype Processor 26794 | -3/Quarantine | Identified Spectral Analyzer (x2) 26976 | -3/Quarantine | Build established: Bothacker-Construct 27283 | -3/Quarantine | Discovered new exit (range 3) 27460 | -3/Quarantine | Found Alien Artifact 27536 | -3/Quarantine | Found Alien Energy Cannon 27574 | -3/Quarantine | Found Prototype Processor 27730 | -3/Quarantine | Identified Exp. Signal Interpreter 27799 | -3/Quarantine | Identified Core Cannon 27865 | -3/Quarantine | System corruption reached 10% 28046 | -3/Quarantine | Spotted Fortress 28052 | -3/Quarantine | Destroyed Fortress 28179 | -3/Quarantine | Discovered new exit (range 6) 28179 | -3/Quarantine | Discovered new exit (range 7) 28186 | -3/Quarantine | Entered Section 7 28201 | -3/Section 7 | Identified Subatomic Replicator 28207 | -3/Section 7 | Found Integrated Dissipator 28210 | -3/Section 7 | Installed Integrated Dissipator, increased core heat dissipation (+20) 28678 | -3/Section 7 | Found Exp. Focal Shield 28725 | -3/Section 7 | Found Integrated Dissipator 28725 | -3/Section 7 | Installed Integrated Dissipator, increased core heat dissipation (+20) 29501 | -3/Section 7 | Spotted S7 Guard 29521 | -3/Section 7 | Found Alien Artifact 29555 | -3/Section 7 | Destroyed S7 Guard 29849 | -3/Section 7 | Spotted S7 Guard 29924 | -3/Section 7 | Found Alien Artifact 29947 | -3/Section 7 | Destroyed S7 Guard 29990 | -3/Section 7 | Found Alien Artifact 30045 | -3/Section 7 | Found Alien Artifact 30077 | -3/Section 7 | Spotted B-86 Titan 30119 | -3/Section 7 | Destroyed B-86 Titan 30216 | -3/Section 7 | Discovered new exit (range 15) 30253 | -3/Section 7 | Build established: Construct 30692 | -3/Section 7 | Found Alien Artifact 30848 | -3/Section 7 | Spotted Executioner 30848 | -3/Section 7 | Spotted Executioner 30900 | -3/Section 7 | Destroyed Executioner 30910 | -3/Section 7 | Destroyed Executioner 30915 | -3/Section 7 | Found Exp. Targeting Computer 30928 | -3/Section 7 | Found Prototype Processor 31157 | -3/Section 7 | Spotted B-99 Colossus 31261 | -3/Section 7 | Core integrity fell below 50% 31411 | -3/Section 7 | Identified Integrity Redistributor (x2) 31411 | -3/Section 7 | Identified Exp. Core Analyzer 31411 | -3/Section 7 | Identified Core Membrane 31411 | -3/Section 7 | Identified Integrated Mediator 31411 | -3/Section 7 | Identified Core Physics Calibrator 31417 | -3/Section 7 | Installed Core Membrane, gained immunity to corruption 31419 | -3/Section 7 | Installed Integrated Mediator, increased core attachment efficiency 31427 | -3/Section 7 | Found Alien Artifact 31436 | -3/Section 7 | First assault squad dispatched 31441 | -3/Section 7 | Identified LRC Inertial Stabilizer 31444 | -3/Section 7 | Found LRC Insulator 31447 | -3/Section 7 | Installed LRC Insulator, 1 resistance modified: EM +25% 31581 | -3/Section 7 | Destroyed 7 combat bots 31612 | -3/Section 7 | Used Subatomic Replicator to create Alien Artifact 31615 | -3/Section 7 | Identified Supercharged Integrated Dissipator 31615 | -3/Section 7 | Installed Supercharged Integrated Dissipator, increased core heat dissipation (+40) 31617 | -3/Section 7 | Installed LRC Inertial Stabilizer, increased mass support (+10) 32355 | -3/Section 7 | Found Alien Artifact 32386 | -3/Section 7 | Found Alien Artifact 32409 | -3/Section 7 | Found Alien Artifact 32927 | -3/Section 7 | Core integrity fell below 20% 32927 | -3/Section 7 | Entered Research 32927 | -2/Research | Evolved 2 slots: Propulsion x1, Utility x1 32948 | -2/Research | Lost 9 parts (3p2n2u2w) 32979 | -2/Research | Garrison activated, responded to threat 33177 | -2/Research | First assault squad dispatched 33423 | -2/Research | Discovered new exit (range 56) 33636 | -2/Research | Identified exit to Access 33667 | -2/Research | Identified Transdimensional Reconstructor (x2) 33667 | -2/Research | Warped through subspace 33678 | -2/Research | Lost 3 allies 33788 | -2/Research | Entered Testing 33940 | -2/Testing | Build established: Tank 33952 | -2/Testing | Found Prototype Device 33954 | -2/Testing | Identified Exp. Weapon Cycler 33962 | -2/Testing | Found Exp. Weapon Cycler 34026 | -2/Testing | Found Exp. Core Analyzer 34300 | -2/Testing | Found Prototype Ballistic Gun 34300 | -2/Testing | Identified Hyp. Multirail 34535 | -2/Testing | Targeted by mysterious "MATRIX" hacker. 34724 | -2/Testing | Found Prototype Device 34761 | -2/Testing | Identified 2N-1CE's Frost Array 34768 | -2/Testing | Found Prototype Device 34824 | -2/Testing | Found Prototype Launcher 34848 | -2/Testing | Identified Exp. EM Disruption Field 34956 | -2/Testing | Destroyed 8 combat bots 35198 | -2/Testing | Identified Point Singularity Launcher 35295 | -2/Testing | Garrison activated, responded to threat 35405 | -2/Testing | Found Prototype Device 35405 | -2/Testing | Identified Exp. Actuator Array 35408 | -2/Testing | Found Prototype Device 35408 | -2/Testing | Identified Exp. Shock Absorption System 35431 | -2/Testing | Build established: Gunner 35538 | -2/Testing | First assault squad dispatched 35574 | -2/Testing | Discovered exit to Access (range 8) 35601 | -2/Testing | Identified exit to Garrison 35601 | -2/Testing | Entered Garrison 35708 | -2/Garrison | Heavy support dispatched to Access 35790 | -2/Garrison | Triggered checkpoint 35822 | -2/Garrison | Garrison Relay disabled 35879 | -2/Garrison | Spotted B-90 Cyclops 35908 | -2/Garrison | Destroyed B-90 Cyclops 36051 | -2/Garrison | Triggered checkpoint 36065 | -2/Garrison | Triggered checkpoint 36127 | -2/Garrison | Triggered checkpoint 36129 | -2/Garrison | Discovered exit to Access (range 13) 36132 | -2/Garrison | Build established: Construct 36329 | -2/Garrison | Triggered checkpoint 36381 | -2/Garrison | Spotted Striker 36414 | -2/Garrison | Destroyed Striker 36433 | -2/Garrison | Rewired Executioner 36446 | -2/Garrison | Garrison Relay disabled 36482 | -2/Garrison | Discovered exit to Access (range 56) 36482 | -2/Garrison | Discovered exit to Access (range 12) 36482 | -2/Garrison | Discovered exit to Access (range 54) 36524 | -2/Garrison | Expanded RIF knowledge: Signal Jamming 36731 | -2/Garrison | Found Relay Coupler [Proto] 36734 | -2/Garrison | Found Relay Coupler [Proto] 36738 | -2/Garrison | Found Relay Coupler [Proto] 36744 | -2/Garrison | Found Relay Coupler [Proto] 37022 | -2/Garrison | Heavy support dispatched to Access 37022 | -2/Garrison | Build established: Botlord-Construct 37034 | -2/Garrison | Entered Access 37034 | -1/Access | Accompanied by 2 allies 37034 | -1/Access | Evolved 2 slots: Power x1, Utility x1 37231 | -1/Access | Lost 4 allies 37534 | -1/Access | First assault squad dispatched 37731 | -1/Access | Spotted B-99 Colossus 37919 | -1/Access | Identified exit to Command 38353 | -1/Access | Entered Command 38468 | -1/Command | Spotted B-99 Colossus 38554 | -1/Command | Destroyed 7 combat bots 38772 | -1/Command | Spotted M Guard 38773 | -1/Command | Spotted M Guard 38777 | -1/Command | Spotted Combat Programmer 38777 | -1/Command | Spotted Combat Programmer 38806 | -1/Command | Destroyed Combat Programmer 38812 | -1/Command | Destroyed Combat Programmer 38822 | -1/Command | Assimilated M Guard with formatsys_high 38823 | -1/Command | Assimilated M Guard with formatsys_high 39085 | -1/Command | 0b10 Conduit disabled 39085 | -1/Command | Met MAIN.C 39113 | -1/Command | Build established: Generator-Construct 39136 | -1/Command | Destroyed MAIN.C Shell 39138 | -1/Command | MAIN.C activated Command garrisons 39147 | -1/Command | Destroyed MAIN.C 39175 | -1/Command | Found Prototype Ballistic Cannon 39180 | -1/Command | Identified Terrabomb 39180 | -1/Command | Identified Omega Cannon 39180 | -1/Command | Discovered new exit (range 34) 39180 | -1/Command | Discovered new exit (range 99) 39180 | -1/Command | Extracted map data and part IDs from MAIN.C's data core 45678 | -1/Command | Used Terrabomb 45699 | -1/Command | Found Exp. Force Field 50057 | -1/Command | Destroyed M Guard 50105 | -1/Command | Destroyed M Guard 50105 | -1/Command | All MAIN.C guards destroyed 50115 | -1/Command | Found AEGIS Remote Shield 55725 | -1/Command | Found Corrupted Multirail 55727 | -1/Command | Found Corrupted Multirail 55947 | -1/Command | Found Multirail 56091 | -1/Command | Found Multirail 56483 | -1/Command | Found Z-bomb Delivery System 56486 | -1/Command | Found Exp. Armor Integrity Analyzer 56825 | -1/Command | Found Cld. Nova Cannon 56826 | -1/Command | Found Hellfire Missile Launcher 57318 | -1/Command | Found Exp. Armor Integrity Analyzer 57472 | -1/Command | Warped through subspace to slip node 57472 | -1/Command | Discovered new exit (range 5) 57480 | -1/Command | Entered Access_0 57482 | -1/Access_0 | Met Architect 57489 | -1/Access_0 | Destroyed A8 57504 | -1/Access_0 | Architect warped through subspace 57542 | -1/Access_0 | Architect warped through subspace 57581 | -1/Access_0 | Architect warped through subspace 57581 | -1/Access_0 | Subspace Access Node disabled 57609 | -1/Access_0 | Architect warped through subspace 57626 | -1/Access_0 | Architect warped through subspace 57675 | -1/Access_0 | Architect warped through subspace 57732 | -1/Access_0 | A6 warped into view 57739 | -1/Access_0 | Destroyed A6 57751 | -1/Access_0 | Architect warped through subspace 57771 | -1/Access_0 | Architect warped through subspace 57783 | -1/Access_0 | Architect warped through subspace 57804 | -1/Access_0 | Architect warped through subspace 57838 | -1/Access_0 | Architect warped through subspace 57843 | -1/Access_0 | Subspace Access Node disabled 57875 | -1/Access_0 | Architect warped through subspace 57897 | -1/Access_0 | Architect warped through subspace 57911 | -1/Access_0 | Architect warped through subspace 57919 | -1/Access_0 | Subspace Access Node disabled 57922 | -1/Access_0 | Architect warped through subspace 57949 | -1/Access_0 | Architect warped through subspace 57955 | -1/Access_0 | A5 warped into view 57979 | -1/Access_0 | Destroyed A5 57986 | -1/Access_0 | Architect warped through subspace 58003 | -1/Access_0 | Core integrity fell below 50% 58012 | -1/Access_0 | Architect warped through subspace 58029 | -1/Access_0 | Architect warped through subspace 58042 | -1/Access_0 | Architect warped through subspace 58053 | -1/Access_0 | Architect warped through subspace 58059 | -1/Access_0 | Architect warped through subspace 58061 | -1/Access_0 | Subspace Access Node disabled 58238 | -1/Access_0 | Destroyed A2 58261 | -1/Access_0 | Destroyed Architect 58262 | -1/Access_0 | Architect triggered a singularity event 58264 | -1/Access_0 | Found Hpw. Transdimensional Reconstructor 58264 | -1/Access_0 | Warped through subspace to slip node 58264 | -1/Access_0 | Discovered new exit (range 8) 58271 | *** | Escaped singularity! Last Messages --------------- 58256_ Acquired Adv. Energy Well. 58256_ Penetrated by Quantum Shear. 58256_ Machine disabled. 58256_ Penetrated by Quantum Shear. 58261_ HV Slug penetrates Architect. 58261_ Architect: "If I can't win, no one wins!" 58261_ Architect destroyed. 58262_ A0_COM: Initiating irreversible singularity event. Goodbye. 58263_ A0_COM: 10. 58264_ A0_COM: 9. 58264_ Acquired Hpw. Transdimensional Reconstructor. 58264_ Warped through subspace, drawn to slip node. 58264_ EXIT=FOUND 58265_ A0_COM: 8. 58266_ A0_COM: 7. 58267_ A0_COM: 6. 58268_ A0_COM: 5. 58269_ A0_COM: 4. 58270_ A0_COM: 3. 58271_ A0_COM: 2. Map ----- +----------------------------------------------------+ | | | | | | | | | | | | | | | | | | | | | | | | | | | | | | | | | ?????????????????????????????????????????????????? | | ?????????????????????????????????????????????????? | | ?????????????????????????????????????????????????? | | ?????????????????????????????????????????????????? | | ?????????????????????????????????????????????????? | | ?????????????????????????????????????????????????? | | ????????????????????????###??????????????????????? | | ???????????????????????## ##?????????????????????? | | ???????????????????????# #?????????????????????? | | ???????????????????????# @ #?????????????????????? | | ??????????????????????## #?????????????????????? | | ??????????????????????# #?????????????????????? | | ??????????????????????# ##?????????????????????? | | ??????????????????????## #?????????????????????? | | ??????????????????????# #?????????????????????? | | ??????????????????????# ##?????????????????????? | | ??????????????????????# ! #?????????????????????? | | ??????????????????????# ##?????????????????????? | | ??????????????????????## #??????????????????????? | | ???????????????????????####??????????????????????? | | ?????????????????????????????????????????????????? | | ?????????????????????????????????????????????????? | | ?????????????????????????????????????????????????? | | ?????????????????????????????????????????????????? | | ?????????????????????????????????????????????????? | | ?????????????????????????????????????????????????? | | ?????????????????????????????????????????????????? | | ?????????????????????????????????????????????????? | | ?????????????????????????????????????????????????? | | ?????????????????????????????????????????????????? | | ?????????????????????????????????????????????????? | | ?????????????????????????????????????????????????? | | ?????????????????????????????????????????????????? | | ?????????????????????????????????????????????????? | +----------------------------------------------------+ Best States ------------- Heat Dissipation 232 Coolant Potential 100 Energy Generation 130 Energy Capacity 1606 Matter Stores 300 Matter Capacity 300 Sight Range 24 Terrain Scan Range 24 Terrain Scan Density 10 Jamming Range 16 Armor Coverage 375 Resistance: EX 75 Resistance: EM 25 Weapon Shielding 90 Weapon Cycling 30 Evasion (%) 71 Targeting Accuracy 12 Core Analysis 8 Armor Integrity Analysis 50 Recoil Reduction 7 Offensive Hacking 14 Defensive Hacking 16 Relay Coupler Types 3 Relay Coupler Value 72 Authchip Count 1 Item Schematics ----------------- Huge Storage Unit | -10/Materials | Hacked Imp. Assault Rifle | -9/Materials | Scanalyzed Hcp. Storage Unit | -9/Materials | Hacked Exp. Targeting Computer | -4/Factory | Scanalyzed Exp. Cooling System | -3/Section 7 | Archive Exp. Thermal Shield | -3/Section 7 | Archive Tiamat Missile Launcher | -3/Section 7 | Archive Helical Railgun | -3/Section 7 | Archive Com. Particle Reactor | -3/Section 7 | Archive Hvy. Dispersion Rifle | -3/Section 7 | Archive Robot Schematics ------------------ M-13 Machinist | -9/Recycling | Hacked R-10 Processor | -3/Section 7 | Archive Fabricated ------------ Centrium Leg | x1 | -5/Factory | Preloaded Adv. Recalibrator | x2 | -4/Factory | Preloaded Repaired ---------- Huge Storage Unit | 21% | -9/Storage Centrium Medium Armor Plating | 58% | -5/Factory Studied --------- Com. Wheel | -9/Materials | Hacked Adv. Remote Datajack | -3/Quarantine | Hacked Alien Tech Used ----------------- Core Cannon Integrated Dissipator Core Membrane Integrated Mediator LRC Insulator Subatomic Replicator Supercharged Integrated Dissipator LRC Inertial Stabilizer Transdimensional Reconstructor Terrabomb High-powered Transdimensional Reconstructor Achievements -------------- Hydra Monstrosity Challenges ------------ None Game ------ Seed MissileConcussiveBooster Manual? 0 Play Time 10:12:28 Cumulative 1076.3 hours Start 2026.02.21 @ 17:28:33 End 2026.02.22 @ 17:21:42 Sessions 9 Manual Loads 0 Difficulty Rogue Special Mode None Game No. 194 Rogue 194 Adventurer 0 Explorer 0 Win Type 6 Total 64 Types 25/7/10/1/3/1/9/4/2/2 Lore% 93 Gallery% 90 Achievement% 79 Wizard Run 0 Options --------- Layout 0 ASCII 0 Keyboard 0 Movement Numpad Keybinds 0 Fullscreen 1 Font 18/SmallcapsGlow Map View 76x50 Zoom Use 0% Tactical HUD 1 Map Filters NONE Filters NONE Steam 1 RUN: c47c6fb1-8da5-4324-bf67-046dfea275f1